Workbook

Sheet 14нов
A2: сокр. | C2: код | H2: цена посл. | I2: спр | J2: предл | K2: :: Last trades | O2: =I29-AVERAGE(I26:J26) -> 1405.746476 | P2: =J29-AVERAGE(I26:J26) -> 297.64073
A3: назв. | B3: № | C3: бумаги | D3: кол. бум.в портф. | E3: лот | F3: спрос | G3: предл | H3: сделки | K3: Date | L3: Price | O3: =AVERAGE(I27:J27)-I29 -> -956.285971
A4: GZH9 | B4: 1 | C4: GZH9 | D4: 14 | E4: 1 | F4: =VLOOKUP(C4,'50'!$C$2:$G$64,3,0) -> 11965 | G4: =VLOOKUP(C4,'50'!$C$2:$G$64,4,0) -> 11971 | H4: =VLOOKUP(C4,'50'!$C$2:$G$64,5,0) -> 11970 | I4: =F4*E4*D4 -> 167510 | J4: =G4*E4*D4 -> 167594 | K4: 2009-02-27 | L4: 35.7223
A5: GMH9 | B5: 2 | C5: GMH9 | D5: 2 | E5: 1 | F5: =VLOOKUP(C5,'50'!$C$2:$G$64,3,0) -> 17201 | G5: =VLOOKUP(C5,'50'!$C$2:$G$64,4,0) -> 17240 | H5: =VLOOKUP(C5,'50'!$C$2:$G$64,5,0) -> 17240 | I5: =F5*E5*D5 -> 34402 | J5: =G5*E5*D5 -> 34480 | K5: 2009-02-26 | L5: 35.7442 | O5: Новый курс | P5: Разница | Q5: Поправка
A6: LKH9 | B6: 3 | C6: LKH9 | D6: 14 | E6: 1 | F6: =VLOOKUP(C6,'50'!$C$2:$G$64,3,0) -> 11822 | G6: =VLOOKUP(C6,'50'!$C$2:$G$64,4,0) -> 11825 | H6: =VLOOKUP(C6,'50'!$C$2:$G$64,5,0) -> 11822 | I6: 165508 | J6: 165550 | K6: 2009-02-25 | L6: 36.0254 | O6: =35.9285 -> 35.9285 | P6: =O6-F28 -> 0.2062 | Q6: =P6*H23*0.02 -> 226.63442
A7: PZH9 | B7: 4 | C7: PZH9 | D7: 2 | E7: 1 | F7: =VLOOKUP(C7,'50'!$C$2:$G$64,3,0) -> 12013 | G7: =VLOOKUP(C7,'50'!$C$2:$G$64,4,0) -> 12118 | H7: =VLOOKUP(C7,'50'!$C$2:$G$64,5,0) -> 12026 | I7: 24026 | J7: 24236 | K7: 2009-02-21 | L7: 36.076
A8: RNH9 | B8: 5 | C8: RNH9 | D8: 10 | E8: 1 | F8: =VLOOKUP(C8,'50'!$C$2:$G$64,3,0) -> 12400 | G8: =VLOOKUP(C8,'50'!$C$2:$G$64,4,0) -> 12420 | H8: =VLOOKUP(C8,'50'!$C$2:$G$64,5,0) -> 12420 | I8: 124000 | J8: 124200 | K8: 2009-02-20 | L8: 36.091 | O8: Тек поз-я | P8: =CurPrt!B8 -> -40
A9: SRH9 | B9: 6 | C9: SRH9 | D9: 80 | E9: 1 | F9: =VLOOKUP(C9,'50'!$C$2:$G$64,3,0) -> 1470 | G9: =VLOOKUP(C9,'50'!$C$2:$G$64,4,0) -> 1471 | H9: =VLOOKUP(C9,'50'!$C$2:$G$64,5,0) -> 1472 | I9: 117600 | J9: 117680 | K9: 2009-02-19 | L9: 36.4267 | O9: Разница | P9: =CurPrt!H1 -> нет
A10: SNH9 | B10: 7 | C10: SNH9 | D10: 6 | E10: 1 | F10: =VLOOKUP(C10,'50'!$C$2:$G$64,3,0) -> 19300 | G10: =VLOOKUP(C10,'50'!$C$2:$G$64,4,0) -> 19399 | H10: =VLOOKUP(C10,'50'!$C$2:$G$64,5,0) -> 19280 | I10: 115800 | J10: 116394 | K10: 2009-02-18 | L10: 35.6345
A11: UIH9 | B11: 8 | C11: UIH9 | D11: 10 | E11: 1 | F11: =VLOOKUP(C11,'50'!$C$2:$G$64,3,0) -> 306 | G11: =VLOOKUP(C11,'50'!$C$2:$G$64,4,0) -> 317 | H11: =VLOOKUP(C11,'50'!$C$2:$G$64,5,0) -> 310 | I11: =F11*E11*D11 -> 3060 | J11: =G11*E11*D11 -> 3170 | K11: 2009-02-17 | L11: 34.7797
A12: VBH9 | B12: 9 | C12: VBH9 | D12: 12 | E12: 1 | F12: =VLOOKUP(C12,'50'!$C$2:$G$64,3,0) -> 1981 | G12: =VLOOKUP(C12,'50'!$C$2:$G$64,4,0) -> 1991 | H12: =VLOOKUP(C12,'50'!$C$2:$G$64,5,0) -> 1981 | I12: 23772 | J12: 23892 | K12: 2009-02-14 | L12: 34.5578
K13: 2009-02-13 | L13: 34.8003
K14: 2009-02-12 | L14: 35.8323
K15: 2009-02-11 | L15: 35.9285
K16: 2009-02-10 | L16: 36.1258
K17: 2009-02-07 | L17: 36.3798 | O17: Контрактов | P17: Цена | Q17: Разница | R17: Итого | S17: В дельте
K18: 2009-02-06 | L18: 36.3095 | O18: -40 | P18: =(36043+36000)/2 -> 36021.5 | Q18: =G20-P18 -> -76.5 | R18: =Q18*O18 -> 3060 | S18: =Q18*20/20 -> -76.5
K19: 2009-02-05 | L19: 36.0135
A20: Фуч на $ | B20: 17 | C20: SiH9 | E20: =VLOOKUP(C20,'50'!$C$2:$G$64,2,0) -> 1000 | F20: =VLOOKUP(C20,'50'!$C$2:$G$64,3,0) -> 35944 | G20: =VLOOKUP(C20,'50'!$C$2:$G$64,4,0) -> 35945 | H20: =VLOOKUP(C20,'50'!$C$2:$G$64,5,0) -> 35944 | I20: 0 | J20: 0 | K20: 2009-02-04 | L20: 36.129 | O20: Дельта | P20: Разница | Q20: Контрактов | R20: Итого | S20: С $
K21: 2009-02-03 | L21: 36.1767 | O21: =(480.95+665)/2-294-22 -> 256.975 | P21: =O21-J32 -> -232.025 | Q21: 40 | R21: =P21*Q21 -> -9281 | S21: =R21+R18 -> -6221
C22: ='50'!C51 -> 0 | I22: =SUM(I4:I21) -> 775678 | J22: =SUM(J4:J21) -> 777196 | K22: 2009-01-31 | L22: 35.4146
C23: RIH9 | E23: =VLOOKUP(C23,'50'!$C$2:$G$54,2,0) -> 1 | F23: =VLOOKUP(C23,'50'!$C$2:$G$54,3,0) -> 54965 | G23: =VLOOKUP(C23,'50'!$C$2:$G$54,4,0) -> 54970 | H23: =VLOOKUP(C23,'50'!$C$2:$G$54,5,0) -> 54955 | K23: 2009-01-30 | L23: 34.6847
C24: RTSI | E24: =VLOOKUP(C24,'50'!$C$2:$G$54,2,0) ->  | F24: =VLOOKUP(C24,'50'!$C$2:$G$54,3,0) ->  | G24: =VLOOKUP("RTSI_Derex",'50'!$C$2:$I$54,5,0) -> 563.06 | H24: =VLOOKUP(C24,'50'!$C$2:$I$54,5,0) -> 547.55
A25: 1 | B25: понедельник | D25: =IF(D30="!!!!!!!"," ","") -> 
A26: 2 | B26: вторник | C26: Корректируемые параметры | I26: =I22/20 -> 38783.9 | J26: =J22/20 -> 38859.8 | K26: портф.
A27: 3 | B27: среда | C27: =CONCATENATE("Текущая дата ",VLOOKUP(WEEKDAY(F27,2),A25:B29,2,0)) -> Текущая дата пятница | F27: =K4 -> 2009-02-27 | I27: =F23*0.02*$F$28 -> 39269.52439 | J27: =G23*0.02*$F$28 -> 39273.09662 | K27: f инд.
A28: 4 | B28: четверг | C28: Текущ.курс доллара | F28: =REPLACE(L4,3,1,",") -> 35,7223 | G28: $ | I28: Дерекс | J28: Инд РТС
A29: 5 | B29: пятница | I29: =G24*2*F28 -> 40227.59648 | J29: =H24*2*F28 -> 39119.49073
D30: =IF(I33>I37,"!!!!!!!",IF(J33<J37,"!!!!!!!","")) ->  | L30: Фуч на индекс
I31: Суж. | J31: Расш. | R31: .
C32: Соединение с QUIK установлено | I32: =ROUND(I27-J26,0) -> 410 | J32: =ROUND(J27-I26,0) -> 489 | K32: =AVERAGE(I32:J32) -> 449.5
I33: =I32+(J27-I27) -> 413.57223 | J33: =J32-(J27-I27) -> 485.42777
H34: 52500 | I34: =ROUND(H34*0.02*$F$28-J26,0) -> -1351 | J34: =ROUND(H34*0.02*$F$28-I26,0) -> -1275
I35: диапазоны
I36: верхний | J36: нижний
I37: 880 | J37: 0
J38: \

Sheet 50
B1: Код класса | C1: Код бумаги | D1: Лот | E1: Спрос | F1: Предл. | G1: Цена послед. | H1: Пред.оц. | I1: Знач.
A2: ГАЗПРОМ ао | B2: EQNE | C2: GAZP | D2: 1 | E2: 118.92 | F2: 118.92 | G2: 119.3 | H2: 114.87
A3: ГМКНорНик | B3: EQNL | C3: GMKN | D3: 1 | E3: 1717.73 | F3: 1717.73 | G3: 1717 | H3: 1639.17
A4: ЛУКОЙЛ | B4: EQBR | C4: LKOH | D4: 1 | E4: 1166.43 | F4: 1166.43 | G4: 1185 | H4: 1100.93
A5: Новатэк ао | B5: EQNE | C5: NOTK | D5: 1 | E5: 0 | F5: 0 | G5: 79.5 | H5: 74.34
A6: ПолюсЗолот | B6: EQNL | C6: PLZL | D6: 1 | E6: 0 | F6: 1198.75 | G6: 1199 | H6: 1178.85
A7: Роснефть | B7: EQNL | C7: ROSN | D7: 1 | E7: 123.58 | F7: 123.58 | G7: 124.48 | H7: 115.09
A8: Сбербанк | B8: EQBR | C8: SBER03 | D8: 1 | E8: 14.64 | F8: 14.64 | G8: 14.69 | H8: 14.58
A9: ВТБ ао | B9: EQNL | C9: VTBR | D9: 1000 | E9: 0.0201 | F9: 0.0201 | G9: 0.0201 | H9: 0.0201
A10: Газпрнефть | B10: EQNL | C10: SIBN | D10: 1 | E10: 80.05 | F10: 80.05 | G10: 80.74 | H10: 71.45
A11: Ростел -ао | B11: EQBR | C11: RTKM | D11: 1 | E11: 290.97 | F11: 290.97 | G11: 291.74 | H11: 288.27
A12: Сбербанк-п | B12: EQBR | C12: SBERP03 | D12: 1 | E12: 8.12 | F12: 0 | G12: 8.14 | H12: 7.91
A13: Сургнфгз | B13: EQNE | C13: SNGS | D13: 100 | E13: 19.319 | F13: 19.319 | G13: 19.29 | H13: 18.589
A14: Сургнфгз-п | B14: EQNE | C14: SNGSP | D14: 100 | E14: 8.076 | F14: 8.076 | G14: 8.08 | H14: 8.01
A15: Татнфт 3ао | B15: EQBR | C15: RU14TATN3006 | D15: 1 | E15: 68.83 | F15: 68.83 | G15: 68.93 | H15: 64.61
A16: Транснф ап | B16: EQNL | C16: TRNFP | D16: 1 | E16: 7341.18 | F16: 7341.18 | G16: 7310 | H16: 7330.28
A17: УралСвИ-ао | B17: EQBR | C17: URSI | D17: 100 | E17: 0 | F17: 0.311 | G17: 0.311 | H17: 0.305
A18: RTS-3.09 | B18: SPBFUT | C18: RIH9 | D18: 1 | E18: 54965 | F18: 54970 | G18: 54955 | H18: 51900
A19: Si-3.09 | B19: SPBFUT | C19: SiH9 | D19: 1000 | E19: 35944 | F19: 35945 | G19: 35944 | H19: 35994
A20: RTSI | B20: RTSIDX | C20: RTSI | G20: 547.55 | H20: 538.11
A21: RTSI_Derex | B21: RTSIDX | C21: RTSI_Derex | G21: 563.06 | H21: 529.46
A22: GMKR-3.09 | B22: SPBFUT | C22: GMH9 | D22: 10 | E22: 17201 | F22: 17240 | G22: 17240 | H22: 16171
A23: GAZR-3.09 | B23: SPBFUT | C23: GZH9 | D23: 100 | E23: 11965 | F23: 11971 | G23: 11970 | H23: 11391
A24: LKOH-3.09 | B24: SPBFUT | C24: LKH9 | D24: 10 | E24: 11822 | F24: 11825 | G24: 11822 | H24: 10950
A25: ROSN-3.09 | B25: SPBFUT | C25: RNH9 | D25: 100 | E25: 12400 | F25: 12420 | G25: 12420 | H25: 11500
A26: PLZL-3.09 | B26: SPBFUT | C26: PZH9 | D26: 10 | E26: 12013 | F26: 12118 | G26: 12026 | H26: 11640
A27: SBRF-3.09 | B27: SPBFUT | C27: SRH9 | D27: 100 | E27: 1470 | F27: 1471 | G27: 1472 | H27: 1434
A28: SNGR-3.09 | B28: SPBFUT | C28: SNH9 | D28: 1000 | E28: 19300 | F28: 19399 | G28: 19280 | H28: 18500
A29: URSI-3.09 | B29: SPBFUT | C29: UIH9 | D29: 1000 | E29: 306 | F29: 317 | G29: 310 | H29: 302
A30: VTBR-3.09 | B30: SPBFUT | C30: VBH9 | D30: 100000 | E30: 1981 | F30: 1991 | G30: 1981 | H30: 1942
A31: SBPR-3.09 | B31: SPBFUT | C31: SPH9 | D31: 100 | E31: 796 | F31: 815 | G31: 801 | H31: 789
A32: RTKM-3.09 | B32: SPBFUT | C32: RTH9 | D32: 100 | E32: 27500 | F32: 29200 | G32: 29000 | H32: 28700
A33: NOTK-3.09 | B33: SPBFUT | C33: NKH9 | D33: 100 | E33: 6506 | F33: 8200 | G33: 7876 | H33: 7101
A34: Eu-3.09 | B34: SPBFUT | C34: EuH9 | D34: 1000 | E34: 46216 | F34: 46252 | G34: 46188 | H34: 46250
A35: ED-3.09 | B35: SPBFUT | C35: EDH9 | D35: 1000 | E35: 1.2792 | F35: 1.2794 | G35: 1.2792 | H35: 1.2766

Sheet CurPrt
A1: Код инструмента | B1: Тек. чист. поз. | F1: 2 | H1: =IF(SUM(H3:H13)=0,"нет","есть!") -> нет
A2: GZH9 | B2: 28 | E2: В портфеле | F2: Должно быть | G2: Имеется | H2: Разница!! | I2: Поправка
A3: GMH9 | B3: 4 | D3: GZH9 | E3: 14 | F3: =E3*$F$1 -> 28 | G3: =VLOOKUP(D3,$A$2:$B$64,2,0) -> 28 | H3: =F3-G3 -> 0
A4: LKH9 | B4: 28 | D4: GMH9 | E4: 2 | F4: 4 | G4: 4 | H4: =F4-G4 -> 0
A5: PZH9 | B5: 4 | D5: LKH9 | E5: 14 | F5: 28 | G5: 28 | H5: 0
A6: RNH9 | B6: 37 | D6: PZH9 | E6: 2 | F6: 4 | G6: 4 | H6: 0
A7: RNM9 | B7: -17 | D7: RNH9 | E7: 10 | F7: 20 | G7: 37 | H7: =F7-G7+I7 -> 0 | I7: 17
A8: RIH9 | B8: -40 | D8: RIH9 | E8: -20 | F8: -40 | G8: -40 | H8: 0
A9: SRH9 | B9: 160 | D9: SRH9 | E9: 80 | F9: 160 | G9: 160 | H9: 0
A10: SNH9 | B10: 12 | D10: SNH9 | E10: 6 | F10: 12 | G10: 12 | H10: 0
A11: SiH9 | B11: -40 | D11: SiH9 | E11: -20 | F11: -40 | G11: -40 | H11: 0
A12: UIH9 | B12: 20 | D12: UIH9 | E12: 10 | F12: 20 | G12: 20 | H12: 0
A13: VBH9 | B13: 24 | D13: VBH9 | E13: 12 | F13: 24 | G13: 24 | H13: 0

Sheet Сделки
A1: Время | B1: Код бумаги | C1: Операция | D1: Цена | E1: Кол-во | F1: Объем
A2: 10:34:11 | B2: RIH9 | C2: Продажа | D2: 53220 | E2: 5 | F2: 191727.2 | H2: =IF(C2="Продажа",F2,-F2) -> 191727.2 | I2: =IF(C2="Продажа",-E2,E2) -> -5
A3: 10:34:11 | B3: RIH9 | C3: Продажа | D3: 53210 | E3: 2 | F3: 76676.46 | H3: 76676.46 | I3: -2
A4: 10:34:11 | B4: RIH9 | C4: Продажа | D4: 53205 | E4: 1 | F4: 38334.63 | H4: 38334.63 | I4: -1
A5: 10:34:11 | B5: RIH9 | C5: Продажа | D5: 53200 | E5: 2 | F5: 76662.06 | H5: 76662.06 | I5: -2
A6: 10:34:11 | B6: RIH9 | C6: Продажа | D6: 53200 | E6: 1 | F6: 38331.03 | H6: 38331.03 | I6: -1
A7: 10:34:11 | B7: RIH9 | C7: Продажа | D7: 53200 | E7: 1 | F7: 38331.03 | H7: 38331.03 | I7: -1
A8: 10:34:12 | B8: RIH9 | C8: Продажа | D8: 53200 | E8: 8 | F8: 306648.24 | H8: 306648.24 | I8: -8
A9: 10:35:24 | B9: RIH9 | C9: Купля | D9: 53460 | E9: 1 | F9: 38518.36 | H9: -38518.36 | I9: 1
A10: 10:35:24 | B10: RIH9 | C10: Купля | D10: 53465 | E10: 1 | F10: 38521.96 | H10: -38521.96 | I10: 1
A11: 10:35:24 | B11: RIH9 | C11: Купля | D11: 53465 | E11: 10 | F11: 385219.6 | H11: -385219.6 | I11: 10
A12: 10:35:24 | B12: RIH9 | C12: Купля | D12: 53465 | E12: 8 | F12: 308175.68 | H12: -308175.68 | I12: 8
A13: 11:33:42 | B13: GZH9 | C13: Купля | D13: 11548 | E13: 5 | F13: 57740 | H13: -57740 | I13: 5
A14: 11:33:42 | B14: GZH9 | C14: Купля | D14: 11549 | E14: 9 | F14: 103941 | H14: -103941 | I14: 9
A15: 11:33:42 | B15: GMH9 | C15: Купля | D15: 16642 | E15: 2 | F15: 33284 | H15: -33284 | I15: 2
A16: 11:33:42 | B16: LKH9 | C16: Купля | D16: 11174 | E16: 10 | F16: 111740 | H16: -111740 | I16: 10
A17: 11:33:42 | B17: PZH9 | C17: Купля | D17: 11716 | E17: 2 | F17: 23432 | H17: -23432 | I17: 2
A18: 11:33:42 | B18: RNH9 | C18: Купля | D18: 11614 | E18: 10 | F18: 116140 | H18: -116140 | I18: 10
A19: 11:33:42 | B19: SRH9 | C19: Купля | D19: 1479 | E19: 5 | F19: 7395 | H19: -7395 | I19: 5
A20: 11:33:42 | B20: UIH9 | C20: Купля | D20: 311 | E20: 10 | F20: 3110 | H20: -3110 | I20: 10
A21: 11:33:42 | B21: VBH9 | C21: Купля | D21: 1986 | E21: 1 | F21: 1986 | H21: -1986 | I21: 1
A22: 11:33:42 | B22: VBH9 | C22: Купля | D22: 1987 | E22: 1 | F22: 1987 | H22: -1987 | I22: 1
A23: 11:33:43 | B23: LKH9 | C23: Купля | D23: 11174 | E23: 1 | F23: 11174 | H23: -11174 | I23: 1
A24: 11:33:43 | B24: SNH9 | C24: Купля | D24: 18595 | E24: 6 | F24: 111570 | H24: -111570 | I24: 6
A25: 11:33:46 | B25: VBH9 | C25: Купля | D25: 1987 | E25: 1 | F25: 1987 | H25: -1987 | I25: 1
A26: 11:33:46 | B26: SRH9 | C26: Купля | D26: 1479 | E26: 1 | F26: 1479 | H26: -1479 | I26: 1
A27: 11:33:47 | B27: SRH9 | C27: Купля | D27: 1479 | E27: 50 | F27: 73950 | H27: -73950 | I27: 50
A28: 11:33:54 | B28: RIH9 | C28: Продажа | D28: 53010 | E28: 4 | F28: 152776.52 | H28: 152776.52 | I28: -4
A29: 11:33:54 | B29: RIH9 | C29: Продажа | D29: 53000 | E29: 4 | F29: 152747.68 | H29: 152747.68 | I29: -4
A30: 11:33:54 | B30: RIH9 | C30: Продажа | D30: 53000 | E30: 10 | F30: 381869.2 | H30: 381869.2 | I30: -10
A31: 11:33:55 | B31: RIH9 | C31: Продажа | D31: 53000 | E31: 1 | F31: 38186.92 | H31: 38186.92 | I31: -1
A32: 11:33:55 | B32: RIH9 | C32: Продажа | D32: 53000 | E32: 1 | F32: 38186.92 | H32: 38186.92 | I32: -1
A33: 11:33:55 | B33: VBH9 | C33: Купля | D33: 1987 | E33: 9 | F33: 17883 | H33: -17883 | I33: 9
A34: 11:33:57 | B34: SRH9 | C34: Купля | D34: 1479 | E34: 14 | F34: 20706 | H34: -20706 | I34: 14
A35: 11:34:00 | B35: SRH9 | C35: Купля | D35: 1479 | E35: 10 | F35: 14790 | H35: -14790 | I35: 10
A36: 11:34:12 | B36: LKH9 | C36: Купля | D36: 11174 | E36: 2 | F36: 22348 | H36: -22348 | I36: 2
A37: 11:34:13 | B37: LKH9 | C37: Купля | D37: 11174 | E37: 1 | F37: 11174 | H37: -11174 | I37: 1
A38: 11:38:01 | B38: SiH9 | C38: Продажа | D38: 36004 | E38: 1 | F38: 36004 | H38: 36004 | I38: -1
A39: 11:38:01 | B39: SiH9 | C39: Продажа | D39: 36000 | E39: 2 | F39: 72000 | H39: 72000 | I39: -2
A40: 11:38:01 | B40: SiH9 | C40: Продажа | D40: 36000 | E40: 3 | F40: 108000 | H40: 108000 | I40: -3
A41: 11:38:01 | B41: SiH9 | C41: Продажа | D41: 36000 | E41: 2 | F41: 72000 | H41: 72000 | I41: -2
A42: 11:38:01 | B42: SiH9 | C42: Продажа | D42: 35983 | E42: 4 | F42: 143932 | H42: 143932 | I42: -4
A43: 11:38:01 | B43: SiH9 | C43: Продажа | D43: 35983 | E43: 4 | F43: 143932 | H43: 143932 | I43: -4
A44: 11:38:01 | B44: SiH9 | C44: Продажа | D44: 35982 | E44: 4 | F44: 143928 | H44: 143928 | I44: -4
A45: 16:08:19 | B45: GMH9 | C45: Продажа | D45: 16471 | E45: 1 | F45: 16471 | H45: 16471 | I45: -1
A46: 16:08:19 | B46: PZH9 | C46: Продажа | D46: 11700 | E46: 2 | F46: 23400 | H46: 23400 | I46: -2
A47: 16:08:19 | B47: SNH9 | C47: Продажа | D47: 18742 | E47: 6 | F47: 112452 | H47: 112452 | I47: -6
A48: 16:08:19 | B48: UIH9 | C48: Продажа | D48: 305 | E48: 2 | F48: 610 | H48: 610 | I48: -2
A49: 16:08:19 | B49: UIH9 | C49: Продажа | D49: 305 | E49: 2 | F49: 610 | H49: 610 | I49: -2
A50: 16:08:19 | B50: VBH9 | C50: Продажа | D50: 1975 | E50: 2 | F50: 3950 | H50: 3950 | I50: -2
A51: 16:08:21 | B51: LKH9 | C51: Продажа | D51: 11085 | E51: 14 | F51: 155190 | H51: 155190 | I51: -14
A52: 16:08:29 | B52: RIH9 | C52: Купля | D52: 52350 | E52: 1 | F52: 37718.59 | H52: -37718.59 | I52: 1
A53: 16:08:29 | B53: RIH9 | C53: Купля | D53: 52355 | E53: 1 | F53: 37722.2 | H53: -37722.2 | I53: 1
A54: 16:08:29 | B54: RIH9 | C54: Купля | D54: 52360 | E54: 6 | F54: 226354.8 | H54: -226354.8 | I54: 6
A55: 16:08:29 | B55: RIH9 | C55: Купля | D55: 52365 | E55: 4 | F55: 150917.6 | H55: -150917.6 | I55: 4
A56: 16:08:29 | B56: RIH9 | C56: Купля | D56: 52365 | E56: 8 | F56: 301835.2 | H56: -301835.2 | I56: 8
A57: 16:08:33 | B57: GZH9 | C57: Продажа | D57: 11605 | E57: 4 | F57: 46420 | H57: 46420 | I57: -4
A58: 16:08:33 | B58: RNH9 | C58: Продажа | D58: 11586 | E58: 10 | F58: 115860 | H58: 115860 | I58: -10
A59: 16:08:34 | B59: UIH9 | C59: Продажа | D59: 305 | E59: 6 | F59: 1830 | H59: 1830 | I59: -6
A60: 16:08:43 | B60: GMH9 | C60: Продажа | D60: 16471 | E60: 1 | F60: 16471 | H60: 16471 | I60: -1
A61: 16:08:44 | B61: GZH9 | C61: Продажа | D61: 11605 | E61: 10 | F61: 116050 | H61: 116050 | I61: -10
A62: 16:08:58 | B62: SRH9 | C62: Продажа | D62: 1457 | E62: 4 | F62: 5828 | H62: 5828 | I62: -4
A63: 16:08:59 | B63: SRH9 | C63: Продажа | D63: 1457 | E63: 1 | F63: 1457 | H63: 1457 | I63: -1
A64: 16:09:12 | B64: SiH9 | C64: Купля | D64: 36098 | E64: 4 | F64: 144392 | H64: -144392 | I64: 4
A65: 16:09:12 | B65: SiH9 | C65: Купля | D65: 36100 | E65: 16 | F65: 577600 | H65: -577600 | I65: 16
A66: 16:09:16 | B66: SRH9 | C66: Продажа | D66: 1454 | E66: 15 | F66: 21810 | H66: =IF(C66="Продажа",F66,-F66) -> 21810 | I66: =IF(C66="Продажа",-E66,E66) -> -15
A67: 16:09:16 | B67: SRH9 | C67: Продажа | D67: 1454 | E67: 1 | F67: 1454 | H67: 1454 | I67: -1
A68: 16:09:30 | B68: SRH9 | C68: Продажа | D68: 1454 | E68: 6 | F68: 8724 | H68: 8724 | I68: -6
A69: 16:09:32 | B69: SRH9 | C69: Продажа | D69: 1454 | E69: 53 | F69: 77062 | H69: 77062 | I69: -53
A70: 16:10:17 | B70: VBH9 | C70: Продажа | D70: 1973 | E70: 10 | F70: 19730 | H70: 19730 | I70: -10
A71: 16:32:12 | B71: GZH9 | C71: Купля | D71: 11577 | E71: 1 | F71: 11577 | H71: -11577 | I71: 1
A72: 16:32:12 | B72: GZH9 | C72: Купля | D72: 11579 | E72: 13 | F72: 150527 | H72: -150527 | I72: 13
A73: 16:32:12 | B73: PZH9 | C73: Купля | D73: 11798 | E73: 1 | F73: 11798 | H73: -11798 | I73: 1
A74: 16:32:12 | B74: RNH9 | C74: Купля | D74: 11577 | E74: 1 | F74: 11577 | H74: -11577 | I74: 1
A75: 16:32:12 | B75: SNH9 | C75: Купля | D75: 18736 | E75: 1 | F75: 18736 | H75: -18736 | I75: 1
A76: 16:32:12 | B76: SNH9 | C76: Купля | D76: 18737 | E76: 5 | F76: 93685 | H76: -93685 | I76: 5 | N76: =9619/20 -> 480.95
A77: 16:32:12 | B77: UIH9 | C77: Купля | D77: 310 | E77: 1 | F77: 310 | H77: -310 | I77: 1
A78: 16:32:12 | B78: VBH9 | C78: Купля | D78: 1982 | E78: 12 | F78: 23784 | H78: -23784 | I78: 12 | N78: 36043
A79: 16:32:12 | B79: RNH9 | C79: Купля | D79: 11577 | E79: 1 | F79: 11577 | H79: -11577 | I79: 1
A80: 16:32:13 | B80: RNH9 | C80: Купля | D80: 11577 | E80: 1 | F80: 11577 | H80: -11577 | I80: 1
A81: 16:32:13 | B81: UIH9 | C81: Купля | D81: 310 | E81: 9 | F81: 2790 | H81: -2790 | I81: 9
A82: 16:32:13 | B82: RNH9 | C82: Купля | D82: 11577 | E82: 2 | F82: 23154 | H82: -23154 | I82: 2
A83: 16:32:13 | B83: LKH9 | C83: Купля | D83: 11116 | E83: 1 | F83: 11116 | H83: -11116 | I83: 1
A84: 16:32:15 | B84: SRH9 | C84: Купля | D84: 1450 | E84: 2 | F84: 2900 | H84: -2900 | I84: 2
A85: 16:32:18 | B85: SRH9 | C85: Купля | D85: 1450 | E85: 78 | F85: 113100 | H85: -113100 | I85: 78
A86: 16:32:21 | B86: GMH9 | C86: Купля | D86: 16506 | E86: 2 | F86: 33012 | H86: -33012 | I86: 2
A87: 16:32:21 | B87: RIH9 | C87: Продажа | D87: 52400 | E87: 10 | F87: 377546.2 | H87: 377546.2 | I87: -10
A88: 16:32:22 | B88: RIH9 | C88: Продажа | D88: 52400 | E88: 2 | F88: 75509.24 | H88: 75509.24 | I88: -2
A89: 16:32:25 | B89: RIH9 | C89: Продажа | D89: 52400 | E89: 8 | F89: 302036.96 | H89: 302036.96 | I89: -8
A90: 16:32:43 | B90: LKH9 | C90: Купля | D90: 11116 | E90: 2 | F90: 22232 | H90: -22232 | I90: 2
A91: 16:32:45 | B91: LKH9 | C91: Купля | D91: 11116 | E91: 11 | F91: 122276 | H91: -122276 | I91: 11
A92: 16:33:25 | B92: RNH9 | C92: Купля | D92: 11577 | E92: 5 | F92: 57885 | H92: -57885 | I92: 5
A93: 16:33:44 | B93: SiH9 | C93: Продажа | D93: 36043 | E93: 20 | F93: 720860 | H93: 720860 | I93: -20
A94: 16:37:02 | B94: PZH9 | C94: Купля | D94: 11860 | E94: 1 | F94: 11860 | H94: -11860 | I94: 1
A95: 17:25:27 | B95: LKH9 | C95: Купля | D95: 11057 | E95: 1 | F95: 11057 | H95: -11057 | I95: 1
A96: 17:25:27 | B96: LKH9 | C96: Купля | D96: 11058 | E96: 1 | F96: 11058 | H96: -11058 | I96: 1
A97: 17:25:27 | B97: PZH9 | C97: Купля | D97: 11824 | E97: 2 | F97: 23648 | H97: -23648 | I97: 2
A98: 17:25:27 | B98: RNH9 | C98: Купля | D98: 11592 | E98: 10 | F98: 115920 | H98: -115920 | I98: 10
A99: 17:25:27 | B99: SRH9 | C99: Купля | D99: 1448 | E99: 1 | F99: 1448 | H99: -1448 | I99: 1
A100: 17:25:27 | B100: UIH9 | C100: Купля | D100: 306 | E100: 10 | F100: 3060 | H100: -3060 | I100: 10
A101: 17:25:27 | B101: VBH9 | C101: Купля | D101: 1970 | E101: 7 | F101: 13790 | H101: -13790 | I101: 7
A102: 17:25:28 | B102: GMH9 | C102: Купля | D102: 16401 | E102: 2 | F102: 32802 | H102: -32802 | I102: 2
A103: 17:25:28 | B103: LKH9 | C103: Купля | D103: 11058 | E103: 1 | F103: 11058 | H103: -11058 | I103: 1
A104: 17:25:28 | B104: GZH9 | C104: Купля | D104: 11555 | E104: 1 | F104: 11555 | H104: -11555 | I104: 1
A105: 17:25:30 | B105: GZH9 | C105: Купля | D105: 11555 | E105: 5 | F105: 57775 | H105: -57775 | I105: 5
A106: 17:25:31 | B106: RIH9 | C106: Продажа | D106: 52500 | E106: 15 | F106: 567400.05 | H106: 567400.05 | I106: -15
A107: 17:25:31 | B107: RIH9 | C107: Продажа | D107: 52500 | E107: 4 | F107: 151306.68 | H107: 151306.68 | I107: -4
A108: 17:25:33 | B108: RIH9 | C108: Продажа | D108: 52500 | E108: 1 | F108: 37826.67 | H108: 37826.67 | I108: -1
A109: 17:25:33 | B109: GZH9 | C109: Купля | D109: 11555 | E109: 1 | F109: 11555 | H109: -11555 | I109: 1
A110: 17:25:36 | B110: SNH9 | C110: Купля | D110: 18623 | E110: 3 | F110: 55869 | H110: -55869 | I110: 3
A111: 17:25:37 | B111: GZH9 | C111: Купля | D111: 11555 | E111: 1 | F111: 11555 | H111: -11555 | I111: 1
A112: 17:25:39 | B112: VBH9 | C112: Купля | D112: 1970 | E112: 1 | F112: 1970 | H112: -1970 | I112: 1
A113: 17:25:43 | B113: LKH9 | C113: Купля | D113: 11058 | E113: 11 | F113: 121638 | H113: -121638 | I113: 11
A114: 17:25:45 | B114: GZH9 | C114: Купля | D114: 11555 | E114: 3 | F114: 34665 | H114: -34665 | I114: 3 | K114: =13304/20 -> 665.2
A115: 17:25:46 | B115: GZH9 | C115: Купля | D115: 11555 | E115: 3 | F115: 34665 | H115: -34665 | I115: 3
A116: 17:25:55 | B116: VBH9 | C116: Купля | D116: 1970 | E116: 4 | F116: 7880 | H116: -7880 | I116: 4 | K116: 36000
A117: 17:26:01 | B117: SRH9 | C117: Купля | D117: 1448 | E117: 5 | F117: 7240 | H117: -7240 | I117: 5
A118: 17:26:04 | B118: SRH9 | C118: Купля | D118: 1448 | E118: 25 | F118: 36200 | H118: -36200 | I118: 25
A119: 17:26:06 | B119: SRH9 | C119: Купля | D119: 1448 | E119: 25 | F119: 36200 | H119: -36200 | I119: 25
A120: 17:26:07 | B120: SiH9 | C120: Продажа | D120: 36001 | E120: 1 | F120: 36001 | H120: 36001 | I120: -1
A121: 17:26:07 | B121: SiH9 | C121: Продажа | D121: 36000 | E121: 19 | F121: 684000 | H121: 684000 | I121: -19
A122: 17:26:08 | B122: SRH9 | C122: Купля | D122: 1448 | E122: 24 | F122: 34752 | H122: -34752 | I122: 24
A123: 17:27:22 | B123: SNH9 | C123: Купля | D123: 18623 | E123: 1 | F123: 18623 | H123: -18623 | I123: 1
A124: 17:27:41 | B124: SNH9 | C124: Купля | D124: 18623 | E124: 1 | F124: 18623 | H124: -18623 | I124: 1
A125: 17:28:22 | B125: SNH9 | C125: Купля | D125: 18623 | E125: 1 | F125: 18623 | H125: -18623 | I125: 1
H126: 0 | I126: 0
H127: 0 | I127: 0
H128: 0 | I128: 0
H129: 0 | I129: 0
H130: =IF(C130="Продажа",F130,-F130) -> 0 | I130: =IF(C130="Продажа",-E130,E130) -> 0
H131: 0 | I131: 0
H132: 0 | I132: 0
H133: 0 | I133: 0
H134: 0 | I134: 0
H135: 0 | I135: 0
H136: 0 | I136: 0
H137: 0 | I137: 0
H138: 0 | I138: 0
H139: 0 | I139: 0
H140: 0 | I140: 0
H141: 0 | I141: 0
H142: 0 | I142: 0
H143: 0 | I143: 0
H144: 0 | I144: 0
H145: 0 | I145: 0
H146: 0 | I146: 0
H147: 0 | I147: 0
H148: 0 | I148: 0
H149: 0 | I149: 0
H150: 0 | I150: 0
H151: 0 | I151: 0
H152: 0 | I152: 0
H153: 0 | I153: 0
H154: 0 | I154: 0
H155: 0 | I155: 0
H156: 0 | I156: 0
H157: 0 | I157: 0
H158: 0 | I158: 0
H159: 0 | I159: 0
H160: 0 | I160: 0
H161: 0 | I161: 0
H162: 0 | I162: 0
H163: 0 | I163: 0
H164: 0 | I164: 0
H165: 0 | I165: 0
H166: 0 | I166: 0
H167: 0 | I167: 0
H168: 0 | I168: 0
H169: 0 | I169: 0
H170: 0 | I170: 0
H171: 0 | I171: 0
H172: 0 | I172: 0
H173: 0 | I173: 0
H174: 0 | I174: 0
H175: 0 | I175: 0
H176: 0 | I176: 0
H177: 0 | I177: 0
H178: 0 | I178: 0
H179: 0 | I179: 0
H180: 0 | I180: 0
H181: 0 | I181: 0
H182: 0 | I182: 0
H183: 0 | I183: 0
H184: 0 | I184: 0
H185: 0 | I185: 0
H186: 0 | I186: 0
H187: 0 | I187: 0
H188: 0 | I188: 0
H189: 0 | I189: 0
H190: 0 | I190: 0
H191: 0 | I191: 0
H192: 0 | I192: 0
H193: 0 | I193: 0
H194: =IF(C194="Продажа",F194,-F194) -> 0 | I194: =IF(C194="Продажа",-E194,E194) -> 0
H195: 0 | I195: 0
H196: 0 | I196: 0
H197: 0 | I197: 0
H198: 0 | I198: 0
H199: 0 | I199: 0
H200: 0 | I200: 0
... 379 more rows

Sheet 26.02.2009
A1: 2009-02-26T16:27:47 | B1: 640 | C1: 693 | D1: 35,7223 | E1: 37789.7 | F1: 38430.05034 | G1: 35905 | H1: 35920 | I1: 548.08 | J1: 542.99
A2: 2009-02-26T16:28:18 | B2: 664 | C2: 716 | D2: 35,7442 | E2: 37789.7 | F2: 38453.61036 | G2: 35905 | H2: 35920 | I2: 548.08 | J2: 542.99
A3: 2009-02-26T16:28:26 | B3: 619 | C3: 669 | D3: 35,7442 | E3: 38052.8 | F3: 38671.64998 | G3: 35861 | H3: 35862 | I3: 553.12 | J3: 546.11
A4: 2009-02-26T16:28:27 | B4: 620 | C4: 669 | D4: 35,7442 | E4: 38051.4 | F4: 38671.64998 | G4: 35861 | H4: 35862 | I4: 553.12 | J4: 546.11
A5: 2009-02-26T16:28:28 | B5: 621 | C5: 669 | D5: 35,7442 | E5: 38051.1 | F5: 38671.64998 | G5: 35855 | H5: 35862 | I5: 553.1 | J5: 546.11
A6: 2009-02-26T16:28:32 | B6: 624 | C6: 673 | D6: 35,7442 | E6: 38051.1 | F6: 38675.2244 | G6: 35857 | H6: 35862 | I6: 553.12 | J6: 546.11
A7: 2009-02-26T16:28:32 | B7: 621 | C7: 670 | D7: 35,7442 | E7: 38051.1 | F7: 38671.64998 | G7: 35857 | H7: 35862 | I7: 553.12 | J7: 546.11
A8: 2009-02-26T16:28:34 | B8: 610 | C8: 670 | D8: 35,7442 | E8: 38050.8 | F8: 38660.92672 | G8: 35862 | H8: 35870 | I8: 553.12 | J8: 546.11
A9: 2009-02-26T16:28:34 | B9: 611 | C9: 670 | D9: 35,7442 | E9: 38050.1 | F9: 38660.92672 | G9: 35862 | H9: 35870 | I9: 553.12 | J9: 546.11
A10: 2009-02-26T16:28:35 | B10: 625 | C10: 674 | D10: 35,7442 | E10: 38050.1 | F10: 38675.2244 | G10: 35862 | H10: 35870 | I10: 553.12 | J10: 546.11
A11: 2009-02-26T16:28:35 | B11: 626 | C11: 674 | D11: 35,7442 | E11: 38049.7 | F11: 38675.2244 | G11: 35862 | H11: 35870 | I11: 553.12 | J11: 546.11
A12: 2009-02-26T16:28:35 | B12: 625 | C12: 674 | D12: 35,7442 | E12: 38049.8 | F12: 38675.2244 | G12: 35857 | H12: 35870 | I12: 553.12 | J12: 546.11
A13: 2009-02-26T16:28:37 | B13: 611 | C13: 674 | D13: 35,7442 | E13: 38049.8 | F13: 38660.92672 | G13: 35857 | H13: 35870 | I13: 553.14 | J13: 546.11
A14: 2009-02-26T16:28:37 | B14: 610 | C14: 674 | D14: 35,7442 | E14: 38050.7 | F14: 38660.92672 | G14: 35857 | H14: 35870 | I14: 553.14 | J14: 546.11
A15: 2009-02-26T16:28:37 | B15: 609 | C15: 674 | D15: 35,7442 | E15: 38052.1 | F15: 38660.92672 | G15: 35858 | H15: 35869 | I15: 553.14 | J15: 546.11
A16: 2009-02-26T16:28:37 | B16: 611 | C16: 684 | D16: 35,7442 | E16: 38049.6 | F16: 38660.92672 | G16: 35858 | H16: 35869 | I16: 553.14 | J16: 546.11
A17: 2009-02-26T16:28:38 | B17: 611 | C17: 678 | D17: 35,7442 | E17: 38049.7 | F17: 38660.92672 | G17: 35858 | H17: 35869 | I17: 553.17 | J17: 546.11
A18: 2009-02-26T16:28:38 | B18: 612 | C18: 678 | D18: 35,7442 | E18: 38049.4 | F18: 38660.92672 | G18: 35858 | H18: 35869 | I18: 553.17 | J18: 546.11
A19: 2009-02-26T16:28:39 | B19: 601 | C19: 678 | D19: 35,7442 | E19: 38049.4 | F19: 38650.20346 | G19: 35858 | H19: 35869 | I19: 553.17 | J19: 546.11
A20: 2009-02-26T16:28:40 | B20: 601 | C20: 706 | D20: 35,7442 | E20: 38049.3 | F20: 38650.20346 | G20: 35858 | H20: 35869 | I20: 553.15 | J20: 546.11
A21: 2009-02-26T16:28:40 | B21: 602 | C21: 706 | D21: 35,7442 | E21: 38047.9 | F21: 38650.20346 | G21: 35858 | H21: 35869 | I21: 553.15 | J21: 546.11
A22: 2009-02-26T16:28:41 | B22: 603 | C22: 710 | D22: 35,7442 | E22: 38047.3 | F22: 38650.20346 | G22: 35858 | H22: 35869 | I22: 553.15 | J22: 546.11
A23: 2009-02-26T16:28:41 | B23: 642 | C23: 699 | D23: 35,7442 | E23: 38047.3 | F23: 38689.52208 | G23: 35858 | H23: 35869 | I23: 553.15 | J23: 546.11
A24: 2009-02-26T16:28:41 | B24: 643 | C24: 699 | D24: 35,7442 | E24: 38047 | F24: 38689.52208 | G24: 35858 | H24: 35869 | I24: 553.15 | J24: 546.11
A25: 2009-02-26T16:28:42 | B25: 642 | C25: 698 | D25: 35,7442 | E25: 38047.4 | F25: 38689.52208 | G25: 35858 | H25: 35869 | I25: 553.11 | J25: 546.11
A26: 2009-02-26T16:28:42 | B26: 639 | C26: 702 | D26: 35,7442 | E26: 38047.4 | F26: 38685.94766 | G26: 35858 | H26: 35869 | I26: 553.11 | J26: 546.11
A27: 2009-02-26T16:28:43 | B27: 646 | C27: 702 | D27: 35,7442 | E27: 38046.9 | F27: 38693.0965 | G27: 35858 | H27: 35869 | I27: 553.11 | J27: 546.11
A28: 2009-02-26T16:28:44 | B28: 646 | C28: 701 | D28: 35,7442 | E28: 38046.9 | F28: 38693.0965 | G28: 35858 | H28: 35869 | I28: 553.11 | J28: 546.11
A29: 2009-02-26T16:28:44 | B29: 621 | C29: 676 | D29: 35,7442 | E29: 38046.9 | F29: 38668.07556 | G29: 35858 | H29: 35869 | I29: 553.11 | J29: 546.11
A30: 2009-02-26T16:28:45 | B30: 618 | C30: 676 | D30: 35,7442 | E30: 38046.9 | F30: 38664.50114 | G30: 35858 | H30: 35869 | I30: 553.11 | J30: 546.11
A31: 2009-02-26T16:28:46 | B31: 618 | C31: 674 | D31: 35,7442 | E31: 38046.9 | F31: 38664.50114 | G31: 35858 | H31: 35869 | I31: 553.12 | J31: 546.11
A32: 2009-02-26T16:28:47 | B32: 614 | C32: 674 | D32: 35,7442 | E32: 38051 | F32: 38664.50114 | G32: 35858 | H32: 35869 | I32: 553.12 | J32: 546.11
A33: 2009-02-26T16:28:48 | B33: 613 | C33: 673 | D33: 35,7442 | E33: 38051.1 | F33: 38664.50114 | G33: 35858 | H33: 35869 | I33: 553.12 | J33: 546.11
A34: 2009-02-26T16:28:48 | B34: 614 | C34: 675 | D34: 35,7442 | E34: 38050.8 | F34: 38664.50114 | G34: 35858 | H34: 35869 | I34: 553.13 | J34: 546.11
A35: 2009-02-26T16:28:49 | B35: 617 | C35: 675 | D35: 35,7442 | E35: 38050.8 | F35: 38668.07556 | G35: 35858 | H35: 35869 | I35: 553.13 | J35: 546.11
A36: 2009-02-26T16:28:50 | B36: 617 | C36: 674 | D36: 35,7442 | E36: 38051.4 | F36: 38668.07556 | G36: 35858 | H36: 35869 | I36: 553.13 | J36: 546.11
A37: 2009-02-26T16:28:50 | B37: 635 | C37: 692 | D37: 35,7442 | E37: 38051.1 | F37: 38685.94766 | G37: 35858 | H37: 35869 | I37: 553.13 | J37: 546.11
A38: 2009-02-26T16:28:50 | B38: 634 | C38: 692 | D38: 35,7442 | E38: 38052.4 | F38: 38685.94766 | G38: 35858 | H38: 35869 | I38: 553.13 | J38: 546.11
A39: 2009-02-26T16:28:51 | B39: 638 | C39: 698 | D39: 35,7442 | E39: 38048.4 | F39: 38685.94766 | G39: 35858 | H39: 35869 | I39: 553.13 | J39: 546.11
A40: 2009-02-26T16:28:53 | B40: 641 | C40: 701 | D40: 35,7442 | E40: 38048.4 | F40: 38689.52208 | G40: 35858 | H40: 35869 | I40: 553.12 | J40: 546.11
A41: 2009-02-26T16:28:53 | B41: 641 | C41: 708 | D41: 35,7442 | E41: 38048.1 | F41: 38689.52208 | G41: 35858 | H41: 35869 | I41: 553.12 | J41: 546.11
A42: 2009-02-26T16:28:54 | B42: 641 | C42: 715 | D42: 35,7442 | E42: 38048.1 | F42: 38689.52208 | G42: 35858 | H42: 35869 | I42: 553.16 | J42: 546.11
A43: 2009-02-26T16:28:54 | B43: 637 | C43: 715 | D43: 35,7442 | E43: 38052.1 | F43: 38689.52208 | G43: 35858 | H43: 35869 | I43: 553.16 | J43: 546.11
A44: 2009-02-26T16:28:55 | B44: 637 | C44: 701 | D44: 35,7442 | E44: 38052.1 | F44: 38689.52208 | G44: 35858 | H44: 35869 | I44: 553.16 | J44: 546.11
A45: 2009-02-26T16:28:55 | B45: 638 | C45: 701 | D45: 35,7442 | E45: 38051.8 | F45: 38689.52208 | G45: 35858 | H45: 35869 | I45: 553.16 | J45: 546.11
A46: 2009-02-26T16:28:56 | B46: 634 | C46: 715 | D46: 35,7442 | E46: 38051.7 | F46: 38685.94766 | G46: 35858 | H46: 35869 | I46: 553.19 | J46: 546.11
A47: 2009-02-26T16:28:58 | B47: 627 | C47: 697 | D47: 35,7442 | E47: 38051.8 | F47: 38678.79882 | G47: 35858 | H47: 35869 | I47: 553.1 | J47: 546.11
A48: 2009-02-26T16:28:59 | B48: 625 | C48: 701 | D48: 35,7442 | E48: 38054.1 | F48: 38678.79882 | G48: 35858 | H48: 35869 | I48: 553.1 | J48: 546.11
A49: 2009-02-26T16:28:59 | B49: 624 | C49: 704 | D49: 35,7442 | E49: 38054.7 | F49: 38678.79882 | G49: 35858 | H49: 35869 | I49: 553.1 | J49: 546.11
A50: 2009-02-26T16:29:00 | B50: 621 | C50: 704 | D50: 35,7442 | E50: 38054.7 | F50: 38675.2244 | G50: 35858 | H50: 35869 | I50: 553.07 | J50: 546.11
A51: 2009-02-26T16:29:00 | B51: 622 | C51: 700 | D51: 35,7442 | E51: 38053.4 | F51: 38675.2244 | G51: 35858 | H51: 35869 | I51: 553.07 | J51: 546.11
A52: 2009-02-26T16:29:00 | B52: 622 | C52: 701 | D52: 35,7442 | E52: 38053.4 | F52: 38675.2244 | G52: 35858 | H52: 35869 | I52: 553.07 | J52: 546.11
A53: 2009-02-26T16:29:01 | B53: 623 | C53: 701 | D53: 35,7442 | E53: 38052.5 | F53: 38675.2244 | G53: 35858 | H53: 35869 | I53: 553.07 | J53: 546.11
A54: 2009-02-26T16:29:01 | B54: 623 | C54: 700 | D54: 35,7442 | E54: 38052.5 | F54: 38675.2244 | G54: 35858 | H54: 35869 | I54: 553.07 | J54: 546.11
A55: 2009-02-26T16:29:01 | B55: 619 | C55: 682 | D55: 35,7442 | E55: 38052.5 | F55: 38671.64998 | G55: 35858 | H55: 35869 | I55: 553.07 | J55: 546.11
A56: 2009-02-26T16:29:01 | B56: 620 | C56: 682 | D56: 35,7442 | E56: 38051.9 | F56: 38671.64998 | G56: 35858 | H56: 35869 | I56: 553.07 | J56: 546.11
A57: 2009-02-26T16:29:02 | B57: 619 | C57: 681 | D57: 35,7442 | E57: 38052.5 | F57: 38671.64998 | G57: 35858 | H57: 35869 | I57: 553.06 | J57: 546.11
A58: 2009-02-26T16:29:02 | B58: 605 | C58: 677 | D58: 35,7442 | E58: 38052.5 | F58: 38657.3523 | G58: 35858 | H58: 35869 | I58: 553.06 | J58: 546.11
A59: 2009-02-26T16:29:03 | B59: 601 | C59: 677 | D59: 35,7442 | E59: 38056.1 | F59: 38657.3523 | G59: 35858 | H59: 35869 | I59: 553.06 | J59: 546.11
A60: 2009-02-26T16:29:03 | B60: 597 | C60: 677 | D60: 35,7442 | E60: 38060.1 | F60: 38657.3523 | G60: 35858 | H60: 35869 | I60: 553.06 | J60: 546.11
A61: 2009-02-26T16:29:05 | B61: 598 | C61: 677 | D61: 35,7442 | E61: 38059.4 | F61: 38657.3523 | G61: 35858 | H61: 35869 | I61: 553.08 | J61: 546.11
A62: 2009-02-26T16:29:05 | B62: 602 | C62: 681 | D62: 35,7442 | E62: 38059.4 | F62: 38660.92672 | G62: 35858 | H62: 35869 | I62: 553.08 | J62: 546.11
A63: 2009-02-26T16:29:06 | B63: 601 | C63: 681 | D63: 35,7442 | E63: 38059.8 | F63: 38660.92672 | G63: 35859 | H63: 35869 | I63: 553.13 | J63: 546.11
A64: 2009-02-26T16:29:06 | B64: 583 | C64: 663 | D64: 35,7442 | E64: 38059.8 | F64: 38643.05462 | G64: 35859 | H64: 35869 | I64: 553.13 | J64: 546.11
A65: 2009-02-26T16:29:07 | B65: 585 | C65: 663 | D65: 35,7442 | E65: 38058.4 | F65: 38643.05462 | G65: 35859 | H65: 35869 | I65: 553.13 | J65: 546.11
A66: 2009-02-26T16:29:07 | B66: 585 | C66: 653 | D66: 35,7442 | E66: 38058.4 | F66: 38643.05462 | G66: 35859 | H66: 35869 | I66: 553.13 | J66: 546.11
A67: 2009-02-26T16:29:07 | B67: 585 | C67: 652 | D67: 35,7442 | E67: 38058.4 | F67: 38643.05462 | G67: 35859 | H67: 35869 | I67: 553.13 | J67: 546.11
A68: 2009-02-26T16:29:08 | B68: 586 | C68: 652 | D68: 35,7442 | E68: 38057.1 | F68: 38643.05462 | G68: 35859 | H68: 35869 | I68: 553.17 | J68: 546.11
A69: 2009-02-26T16:29:08 | B69: 582 | C69: 648 | D69: 35,7442 | E69: 38057.1 | F69: 38639.4802 | G69: 35859 | H69: 35869 | I69: 553.17 | J69: 546.11
A70: 2009-02-26T16:29:08 | B70: 582 | C70: 652 | D70: 35,7442 | E70: 38057.1 | F70: 38639.4802 | G70: 35859 | H70: 35869 | I70: 553.17 | J70: 546.11
A71: 2009-02-26T16:29:09 | B71: 582 | C71: 655 | D71: 35,7442 | E71: 38057.1 | F71: 38639.4802 | G71: 35859 | H71: 35869 | I71: 553.17 | J71: 546.11
A72: 2009-02-26T16:29:09 | B72: 582 | C72: 653 | D72: 35,7442 | E72: 38057.1 | F72: 38639.4802 | G72: 35859 | H72: 35869 | I72: 553.17 | J72: 546.11
A73: 2009-02-26T16:29:09 | B73: 583 | C73: 653 | D73: 35,7442 | E73: 38056.8 | F73: 38639.4802 | G73: 35859 | H73: 35869 | I73: 553.17 | J73: 546.11
A74: 2009-02-26T16:29:09 | B74: 583 | C74: 656 | D74: 35,7442 | E74: 38056.8 | F74: 38639.4802 | G74: 35859 | H74: 35869 | I74: 553.17 | J74: 546.11
A75: 2009-02-26T16:29:12 | B75: 584 | C75: 656 | D75: 35,7442 | E75: 38055.4 | F75: 38639.4802 | G75: 35859 | H75: 35869 | I75: 553.19 | J75: 546.11
A76: 2009-02-26T16:29:12 | B76: 577 | C76: 656 | D76: 35,7442 | E76: 38055.4 | F76: 38632.33136 | G76: 35859 | H76: 35869 | I76: 553.19 | J76: 546.11
A77: 2009-02-26T16:29:12 | B77: 577 | C77: 677 | D77: 35,7442 | E77: 38055.4 | F77: 38632.33136 | G77: 35859 | H77: 35869 | I77: 553.19 | J77: 546.11
A78: 2009-02-26T16:29:12 | B78: 578 | C78: 676 | D78: 35,7442 | E78: 38054.7 | F78: 38632.33136 | G78: 35859 | H78: 35869 | I78: 553.19 | J78: 546.11
A79: 2009-02-26T16:29:15 | B79: 584 | C79: 677 | D79: 35,7442 | E79: 38048.4 | F79: 38632.33136 | G79: 35859 | H79: 35869 | I79: 553.28 | J79: 546.11
A80: 2009-02-26T16:29:15 | B80: 584 | C80: 679 | D80: 35,7442 | E80: 38048.4 | F80: 38632.33136 | G80: 35859 | H80: 35869 | I80: 553.28 | J80: 546.11
A81: 2009-02-26T16:29:15 | B81: 570 | C81: 643 | D81: 35,7442 | E81: 38048.4 | F81: 38618.03368 | G81: 35859 | H81: 35869 | I81: 553.28 | J81: 546.11
A82: 2009-02-26T16:29:15 | B82: 563 | C82: 643 | D82: 35,7442 | E82: 38054.7 | F82: 38618.03368 | G82: 35859 | H82: 35869 | I82: 553.28 | J82: 546.11
A83: 2009-02-26T16:29:15 | B83: 556 | C83: 643 | D83: 35,7442 | E83: 38062.2 | F83: 38618.03368 | G83: 35859 | H83: 35869 | I83: 553.28 | J83: 546.11
A84: 2009-02-26T16:29:15 | B84: 557 | C84: 643 | D84: 35,7442 | E84: 38061.5 | F84: 38618.03368 | G84: 35859 | H84: 35869 | I84: 553.12 | J84: 546.11
A85: 2009-02-26T16:29:15 | B85: 564 | C85: 643 | D85: 35,7442 | E85: 38061.5 | F85: 38625.18252 | G85: 35859 | H85: 35869 | I85: 553.12 | J85: 546.11
A86: 2009-02-26T16:29:15 | B86: 571 | C86: 633 | D86: 35,7442 | E86: 38053.7 | F86: 38625.18252 | G86: 35859 | H86: 35869 | I86: 553.12 | J86: 546.11
A87: 2009-02-26T16:29:15 | B87: 572 | C87: 633 | D87: 35,7442 | E87: 38053.6 | F87: 38625.18252 | G87: 35859 | H87: 35869 | I87: 553.12 | J87: 546.11
A88: 2009-02-26T16:29:16 | B88: 575 | C88: 633 | D88: 35,7442 | E88: 38053.6 | F88: 38628.75694 | G88: 35859 | H88: 35869 | I88: 553.17 | J88: 546.11
A89: 2009-02-26T16:29:16 | B89: 576 | C89: 632 | D89: 35,7442 | E89: 38052.9 | F89: 38628.75694 | G89: 35859 | H89: 35869 | I89: 553.17 | J89: 546.11
A90: 2009-02-26T16:29:16 | B90: 568 | C90: 632 | D90: 35,7442 | E90: 38061 | F90: 38628.75694 | G90: 35859 | H90: 35869 | I90: 553.17 | J90: 546.11
A91: 2009-02-26T16:29:17 | B91: 568 | C91: 661 | D91: 35,7442 | E91: 38061 | F91: 38628.75694 | G91: 35859 | H91: 35869 | I91: 553.17 | J91: 546.11
A92: 2009-02-26T16:29:17 | B92: 568 | C92: 662 | D92: 35,7442 | E92: 38061 | F92: 38628.75694 | G92: 35859 | H92: 35869 | I92: 553.17 | J92: 546.11
A93: 2009-02-26T16:29:18 | B93: 573 | C93: 662 | D93: 35,7442 | E93: 38056 | F93: 38628.75694 | G93: 35859 | H93: 35869 | I93: 553.17 | J93: 546.11
A94: 2009-02-26T16:29:18 | B94: 573 | C94: 663 | D94: 35,7442 | E94: 38055.7 | F94: 38628.75694 | G94: 35859 | H94: 35869 | I94: 553.17 | J94: 546.11
A95: 2009-02-26T16:29:19 | B95: 576 | C95: 663 | D95: 35,7442 | E95: 38052.9 | F95: 38628.75694 | G95: 35859 | H95: 35869 | I95: 553.11 | J95: 546.11
A96: 2009-02-26T16:29:19 | B96: 565 | C96: 663 | D96: 35,7442 | E96: 38052.9 | F96: 38618.03368 | G96: 35859 | H96: 35869 | I96: 553.11 | J96: 546.11
A97: 2009-02-26T16:29:20 | B97: 565 | C97: 662 | D97: 35,7442 | E97: 38052.9 | F97: 38618.03368 | G97: 35859 | H97: 35869 | I97: 553.11 | J97: 546.11
A98: 2009-02-26T16:29:20 | B98: 576 | C98: 659 | D98: 35,7442 | E98: 38052.9 | F98: 38628.75694 | G98: 35859 | H98: 35869 | I98: 553.1 | J98: 546.11
A99: 2009-02-26T16:29:20 | B99: 576 | C99: 658 | D99: 35,7442 | E99: 38052.9 | F99: 38628.75694 | G99: 35859 | H99: 35869 | I99: 553.1 | J99: 546.11
A100: 2009-02-26T16:29:22 | B100: 577 | C100: 665 | D100: 35,7442 | E100: 38052.2 | F100: 38628.75694 | G100: 35859 | H100: 35870 | I100: 553.17 | J100: 546.11
A101: 2009-02-26T16:29:22 | B101: 577 | C101: 667 | D101: 35,7442 | E101: 38051.5 | F101: 38628.75694 | G101: 35859 | H101: 35870 | I101: 553.17 | J101: 546.11
A102: 2009-02-26T16:29:22 | B102: 577 | C102: 663 | D102: 35,7442 | E102: 38051.5 | F102: 38628.75694 | G102: 35859 | H102: 35870 | I102: 553.17 | J102: 546.11
A103: 2009-02-26T16:29:23 | B103: 575 | C103: 663 | D103: 35,7442 | E103: 38053.6 | F103: 38628.75694 | G103: 35859 | H103: 35870 | I103: 553.17 | J103: 546.11
A104: 2009-02-26T16:29:23 | B104: 576 | C104: 661 | D104: 35,7442 | E104: 38052.7 | F104: 38628.75694 | G104: 35859 | H104: 35870 | I104: 553.17 | J104: 546.11
A105: 2009-02-26T16:29:24 | B105: 577 | C105: 661 | D105: 35,7442 | E105: 38052 | F105: 38628.75694 | G105: 35859 | H105: 35870 | I105: 553.09 | J105: 546.11
A106: 2009-02-26T16:29:24 | B106: 577 | C106: 665 | D106: 35,7442 | E106: 38052 | F106: 38628.75694 | G106: 35859 | H106: 35870 | I106: 553.09 | J106: 546.11
A107: 2009-02-26T16:29:24 | B107: 577 | C107: 664 | D107: 35,7442 | E107: 38052 | F107: 38628.75694 | G107: 35859 | H107: 35870 | I107: 553.09 | J107: 546.11
A108: 2009-02-26T16:29:25 | B108: 577 | C108: 665 | D108: 35,7442 | E108: 38052 | F108: 38628.75694 | G108: 35859 | H108: 35870 | I108: 553.09 | J108: 546.11
A109: 2009-02-26T16:29:25 | B109: 577 | C109: 686 | D109: 35,7442 | E109: 38052 | F109: 38628.75694 | G109: 35859 | H109: 35870 | I109: 553.09 | J109: 546.11
A110: 2009-02-26T16:29:25 | B110: 577 | C110: 687 | D110: 35,7442 | E110: 38052 | F110: 38628.75694 | G110: 35859 | H110: 35870 | I110: 553.09 | J110: 546.11
A111: 2009-02-26T16:29:26 | B111: 577 | C111: 686 | D111: 35,7442 | E111: 38051.9 | F111: 38628.75694 | G111: 35859 | H111: 35869 | I111: 553.09 | J111: 546.11
A112: 2009-02-26T16:29:26 | B112: 566 | C112: 686 | D112: 35,7442 | E112: 38051.9 | F112: 38618.03368 | G112: 35859 | H112: 35869 | I112: 553.09 | J112: 546.11
A113: 2009-02-26T16:29:26 | B113: 566 | C113: 690 | D113: 35,7442 | E113: 38051.9 | F113: 38618.03368 | G113: 35859 | H113: 35869 | I113: 553.09 | J113: 546.11
A114: 2009-02-26T16:29:27 | B114: 580 | C114: 676 | D114: 35,7442 | E114: 38051.9 | F114: 38632.33136 | G114: 35859 | H114: 35869 | I114: 553.11 | J114: 546.11
A115: 2009-02-26T16:29:28 | B115: 581 | C115: 676 | D115: 35,7442 | E115: 38051.2 | F115: 38632.33136 | G115: 35870 | H115: 35871 | I115: 553.11 | J115: 546.11
A116: 2009-02-26T16:29:28 | B116: 585 | C116: 662 | D116: 35,7442 | E116: 38051.2 | F116: 38635.90578 | G116: 35870 | H116: 35871 | I116: 553.11 | J116: 546.11
A117: 2009-02-26T16:29:28 | B117: 585 | C117: 663 | D117: 35,7442 | E117: 38051.2 | F117: 38635.90578 | G117: 35870 | H117: 35871 | I117: 553.11 | J117: 546.11
A118: 2009-02-26T16:29:28 | B118: 589 | C118: 663 | D118: 35,7442 | E118: 38046.7 | F118: 38635.90578 | G118: 35870 | H118: 35871 | I118: 553.11 | J118: 546.11
A119: 2009-02-26T16:29:30 | B119: 590 | C119: 663 | D119: 35,7442 | E119: 38046 | F119: 38635.90578 | G119: 35870 | H119: 35871 | I119: 553.03 | J119: 546.11
A120: 2009-02-26T16:29:30 | B120: 629 | C120: 706 | D120: 35,7442 | E120: 38046 | F120: 38675.2244 | G120: 35870 | H120: 35871 | I120: 553.03 | J120: 546.11
A121: 2009-02-26T16:29:30 | B121: 629 | C121: 702 | D121: 35,7442 | E121: 38046 | F121: 38675.2244 | G121: 35870 | H121: 35871 | I121: 553.03 | J121: 546.11
A122: 2009-02-26T16:29:31 | B122: 590 | C122: 652 | D122: 35,7442 | E122: 38046 | F122: 38635.90578 | G122: 35870 | H122: 35871 | I122: 552.97 | J122: 546.11
A123: 2009-02-26T16:29:32 | B123: 594 | C123: 653 | D123: 35,7442 | E123: 38041.8 | F123: 38635.90578 | G123: 35870 | H123: 35871 | I123: 552.92 | J123: 546.11
A124: 2009-02-26T16:29:32 | B124: 591 | C124: 649 | D124: 35,7442 | E124: 38041.8 | F124: 38632.33136 | G124: 35870 | H124: 35871 | I124: 552.92 | J124: 546.11
A125: 2009-02-26T16:29:32 | B125: 591 | C125: 650 | D125: 35,7442 | E125: 38041.3 | F125: 38632.33136 | G125: 35870 | H125: 35871 | I125: 552.92 | J125: 546.11
A126: 2009-02-26T16:29:32 | B126: 591 | C126: 649 | D126: 35,7442 | E126: 38041.3 | F126: 38632.33136 | G126: 35870 | H126: 35871 | I126: 552.92 | J126: 546.11
A127: 2009-02-26T16:29:34 | B127: 591 | C127: 681 | D127: 35,7442 | E127: 38041.3 | F127: 38632.33136 | G127: 35870 | H127: 35871 | I127: 552.92 | J127: 546.11
A128: 2009-02-26T16:29:34 | B128: 591 | C128: 682 | D128: 35,7442 | E128: 38041.3 | F128: 38632.33136 | G128: 35870 | H128: 35871 | I128: 552.92 | J128: 546.11
A129: 2009-02-26T16:29:34 | B129: 591 | C129: 678 | D129: 35,7442 | E129: 38041.3 | F129: 38632.33136 | G129: 35870 | H129: 35871 | I129: 552.92 | J129: 546.11
A130: 2009-02-26T16:29:35 | B130: 590 | C130: 678 | D130: 35,7442 | E130: 38042.7 | F130: 38632.33136 | G130: 35870 | H130: 35871 | I130: 553.03 | J130: 546.11
A131: 2009-02-26T16:29:35 | B131: 590 | C131: 685 | D131: 35,7442 | E131: 38042.7 | F131: 38632.33136 | G131: 35870 | H131: 35871 | I131: 553.03 | J131: 546.11
A132: 2009-02-26T16:29:36 | B132: 597 | C132: 696 | D132: 35,7442 | E132: 38042.7 | F132: 38639.4802 | G132: 35870 | H132: 35871 | I132: 553.03 | J132: 546.11
A133: 2009-02-26T16:29:37 | B133: 597 | C133: 679 | D133: 35,7442 | E133: 38042.7 | F133: 38639.4802 | G133: 35870 | H133: 35871 | I133: 553.02 | J133: 546.11
A134: 2009-02-26T16:29:37 | B134: 597 | C134: 678 | D134: 35,7442 | E134: 38042.7 | F134: 38639.4802 | G134: 35870 | H134: 35871 | I134: 553.02 | J134: 546.11
A135: 2009-02-26T16:29:38 | B135: 597 | C135: 676 | D135: 35,7442 | E135: 38042.7 | F135: 38639.4802 | G135: 35870 | H135: 35871 | I135: 553.02 | J135: 546.11
A136: 2009-02-26T16:29:38 | B136: 595 | C136: 676 | D136: 35,7442 | E136: 38044.8 | F136: 38639.4802 | G136: 35870 | H136: 35871 | I136: 553 | J136: 546.11
A137: 2009-02-26T16:29:38 | B137: 605 | C137: 676 | D137: 35,7442 | E137: 38044.8 | F137: 38650.20346 | G137: 35870 | H137: 35871 | I137: 553 | J137: 546.11
A138: 2009-02-26T16:29:39 | B138: 610 | C138: 679 | D138: 35,7442 | E138: 38040.6 | F138: 38650.20346 | G138: 35870 | H138: 35871 | I138: 553 | J138: 546.11
A139: 2009-02-26T16:29:39 | B139: 627 | C139: 697 | D139: 35,7442 | E139: 38040.6 | F139: 38668.07556 | G139: 35870 | H139: 35871 | I139: 553 | J139: 546.11
A140: 2009-02-26T16:29:39 | B140: 626 | C140: 697 | D140: 35,7442 | E140: 38042.1 | F140: 38668.07556 | G140: 35870 | H140: 35871 | I140: 553 | J140: 546.11
A141: 2009-02-26T16:29:40 | B141: 624 | C141: 694 | D141: 35,7442 | E141: 38044.2 | F141: 38668.07556 | G141: 35870 | H141: 35871 | I141: 552.95 | J141: 546.11
A142: 2009-02-26T16:29:40 | B142: 610 | C142: 684 | D142: 35,7442 | E142: 38044.2 | F142: 38653.77788 | G142: 35870 | H142: 35871 | I142: 552.95 | J142: 546.11
A143: 2009-02-26T16:29:40 | B143: 610 | C143: 683 | D143: 35,7442 | E143: 38044.2 | F143: 38653.77788 | G143: 35870 | H143: 35871 | I143: 552.95 | J143: 546.11
A144: 2009-02-26T16:29:42 | B144: 560 | C144: 683 | D144: 35,7442 | E144: 38044.2 | F144: 38603.736 | G144: 35870 | H144: 35871 | I144: 552.95 | J144: 546.11
A145: 2009-02-26T16:29:42 | B145: 561 | C145: 683 | D145: 35,7442 | E145: 38043.2 | F145: 38603.736 | G145: 35870 | H145: 35871 | I145: 552.95 | J145: 546.11
A146: 2009-02-26T16:29:42 | B146: 558 | C146: 696 | D146: 35,7442 | E146: 38045.3 | F146: 38603.736 | G146: 35870 | H146: 35871 | I146: 552.95 | J146: 546.11
A147: 2009-02-26T16:29:42 | B147: 487 | C147: 603 | D147: 35,7442 | E147: 38045.3 | F147: 38532.2476 | G147: 35870 | H147: 35871 | I147: 552.95 | J147: 546.11
A148: 2009-02-26T16:29:42 | B148: 487 | C148: 605 | D148: 35,7442 | E148: 38045.3 | F148: 38532.2476 | G148: 35870 | H148: 35871 | I148: 552.95 | J148: 546.11
A149: 2009-02-26T16:29:43 | B149: 487 | C149: 607 | D149: 35,7442 | E149: 38045.3 | F149: 38532.2476 | G149: 35870 | H149: 35871 | I149: 552.9 | J149: 546.11
A150: 2009-02-26T16:29:43 | B150: 483 | C150: 607 | D150: 35,7442 | E150: 38045.3 | F150: 38528.67318 | G150: 35870 | H150: 35871 | I150: 552.9 | J150: 546.11
A151: 2009-02-26T16:29:44 | B151: 466 | C151: 603 | D151: 35,7442 | E151: 38045.3 | F151: 38510.80108 | G151: 35870 | H151: 35871 | I151: 552.9 | J151: 546.11
A152: 2009-02-26T16:29:45 | B152: 471 | C152: 606 | D152: 35,7442 | E152: 38039.7 | F152: 38510.80108 | G152: 35870 | H152: 35871 | I152: 552.57 | J152: 546.11
A153: 2009-02-26T16:29:45 | B153: 475 | C153: 606 | D153: 35,7442 | E153: 38036.2 | F153: 38510.80108 | G153: 35870 | H153: 35871 | I153: 552.57 | J153: 546.11
A154: 2009-02-26T16:29:46 | B154: 487 | C154: 607 | D154: 35,7442 | E154: 38023.6 | F154: 38510.80108 | G154: 35870 | H154: 35871 | I154: 552.57 | J154: 546.11
A155: 2009-02-26T16:29:46 | B155: 441 | C155: 539 | D155: 35,7442 | E155: 38023.6 | F155: 38464.33362 | G155: 35870 | H155: 35871 | I155: 552.57 | J155: 546.11
A156: 2009-02-26T16:29:48 | B156: 442 | C156: 539 | D156: 35,7442 | E156: 38022.2 | F156: 38464.33362 | G156: 35870 | H156: 35871 | I156: 552.54 | J156: 546.11
A157: 2009-02-26T16:29:48 | B157: 439 | C157: 507 | D157: 35,7442 | E157: 38022.2 | F157: 38460.7592 | G157: 35870 | H157: 35871 | I157: 552.54 | J157: 546.11
A158: 2009-02-26T16:29:48 | B158: 443 | C158: 507 | D158: 35,7442 | E158: 38018 | F158: 38460.7592 | G158: 35870 | H158: 35871 | I158: 552.54 | J158: 546.11
A159: 2009-02-26T16:29:48 | B159: 444 | C159: 509 | D159: 35,7442 | E159: 38016.6 | F159: 38460.7592 | G159: 35870 | H159: 35871 | I159: 552.54 | J159: 546.11
A160: 2009-02-26T16:29:48 | B160: 444 | C160: 562 | D160: 35,7442 | E160: 38016.6 | F160: 38460.7592 | G160: 35870 | H160: 35871 | I160: 552.54 | J160: 546.11
A161: 2009-02-26T16:29:49 | B161: 445 | C161: 562 | D161: 35,7442 | E161: 38015.9 | F161: 38460.7592 | G161: 35870 | H161: 35872 | I161: 552.45 | J161: 546.11
A162: 2009-02-26T16:29:49 | B162: 453 | C162: 570 | D162: 35,7442 | E162: 38007.9 | F162: 38460.7592 | G162: 35870 | H162: 35872 | I162: 552.45 | J162: 546.11
A163: 2009-02-26T16:29:49 | B163: 471 | C163: 534 | D163: 35,7442 | E163: 38007.9 | F163: 38478.6313 | G163: 35870 | H163: 35872 | I163: 552.45 | J163: 546.11
A164: 2009-02-26T16:29:50 | B164: 468 | C164: 520 | D164: 35,7442 | E164: 38007.2 | F164: 38475.05688 | G164: 35870 | H164: 35872 | I164: 552.45 | J164: 546.11
A165: 2009-02-26T16:29:50 | B165: 470 | C165: 525 | D165: 35,7442 | E165: 38005.1 | F165: 38475.05688 | G165: 35870 | H165: 35872 | I165: 552.45 | J165: 546.11
A166: 2009-02-26T16:29:50 | B166: 470 | C166: 529 | D166: 35,7442 | E166: 38005.1 | F166: 38475.05688 | G166: 35870 | H166: 35872 | I166: 552.45 | J166: 546.11
A167: 2009-02-26T16:29:51 | B167: 471 | C167: 533 | D167: 35,7442 | E167: 38004.4 | F167: 38475.05688 | G167: 35870 | H167: 35872 | I167: 552.04 | J167: 546.11
A168: 2009-02-26T16:29:51 | B168: 456 | C168: 537 | D168: 35,7442 | E168: 38004.4 | F168: 38460.7592 | G168: 35870 | H168: 35872 | I168: 552.04 | J168: 546.11
A169: 2009-02-26T16:29:51 | B169: 457 | C169: 537 | D169: 35,7442 | E169: 38003.7 | F169: 38460.7592 | G169: 35870 | H169: 35872 | I169: 552.04 | J169: 546.11
A170: 2009-02-26T16:29:51 | B170: 461 | C170: 537 | D170: 35,7442 | E170: 37999.7 | F170: 38460.7592 | G170: 35870 | H170: 35872 | I170: 552.04 | J170: 546.11
A171: 2009-02-26T16:29:52 | B171: 464 | C171: 549 | D171: 35,7442 | E171: 37996.9 | F171: 38460.7592 | G171: 35870 | H171: 35872 | I171: 552.04 | J171: 546.11
A172: 2009-02-26T16:29:52 | B172: 460 | C172: 556 | D172: 35,7442 | E172: 37996.9 | F172: 38457.18478 | G172: 35870 | H172: 35872 | I172: 552.04 | J172: 546.11
A173: 2009-02-26T16:29:52 | B173: 464 | C173: 558 | D173: 35,7442 | E173: 37993.4 | F173: 38457.18478 | G173: 35870 | H173: 35872 | I173: 552.04 | J173: 546.11
A174: 2009-02-26T16:29:52 | B174: 464 | C174: 560 | D174: 35,7442 | E174: 37993.4 | F174: 38457.18478 | G174: 35870 | H174: 35872 | I174: 552.04 | J174: 546.11
A175: 2009-02-26T16:29:53 | B175: 461 | C175: 553 | D175: 35,7442 | E175: 37996.2 | F175: 38457.18478 | G175: 35871 | H175: 35872 | I175: 551.96 | J175: 546.11
A176: 2009-02-26T16:29:53 | B176: 461 | C176: 521 | D176: 35,7442 | E176: 37996.2 | F176: 38457.18478 | G176: 35871 | H176: 35872 | I176: 551.96 | J176: 546.11
A177: 2009-02-26T16:29:54 | B177: 462 | C177: 521 | D177: 35,7442 | E177: 37995.5 | F177: 38457.18478 | G177: 35871 | H177: 35872 | I177: 551.96 | J177: 546.11
A178: 2009-02-26T16:29:54 | B178: 481 | C178: 666 | D178: 35,7442 | E178: 37976 | F178: 38457.18478 | G178: 35871 | H178: 35872 | I178: 551.96 | J178: 546.11
A179: 2009-02-26T16:29:54 | B179: 490 | C179: 666 | D179: 35,7442 | E179: 37967.6 | F179: 38457.18478 | G179: 35871 | H179: 35872 | I179: 551.96 | J179: 546.11
A180: 2009-02-26T16:29:54 | B180: 494 | C180: 666 | D180: 35,7442 | E180: 37963.5 | F180: 38457.18478 | G180: 35871 | H180: 35872 | I180: 551.96 | J180: 546.11
A181: 2009-02-26T16:29:54 | B181: 544 | C181: 723 | D181: 35,7442 | E181: 37963.5 | F181: 38507.22666 | G181: 35871 | H181: 35872 | I181: 551.96 | J181: 546.11
A182: 2009-02-26T16:29:54 | B182: 549 | C182: 723 | D182: 35,7442 | E182: 37958.7 | F182: 38507.22666 | G182: 35871 | H182: 35872 | I182: 551.96 | J182: 546.11
A183: 2009-02-26T16:29:54 | B183: 549 | C183: 745 | D183: 35,7442 | E183: 37958.2 | F183: 38507.22666 | G183: 35871 | H183: 35872 | I183: 551.96 | J183: 546.11
A184: 2009-02-26T16:29:55 | B184: 542 | C184: 735 | D184: 35,7442 | E184: 37958.2 | F184: 38500.07782 | G184: 35871 | H184: 35872 | I184: 551.72 | J184: 546.11
A185: 2009-02-26T16:29:55 | B185: 541 | C185: 739 | D185: 35,7442 | E185: 37958.9 | F185: 38500.07782 | G185: 35871 | H185: 35872 | I185: 551.72 | J185: 546.11
A186: 2009-02-26T16:29:56 | B186: 522 | C186: 739 | D186: 35,7442 | E186: 37978.2 | F186: 38500.07782 | G186: 35870 | H186: 35872 | I186: 551.72 | J186: 546.11
A187: 2009-02-26T16:29:57 | B187: 523 | C187: 739 | D187: 35,7442 | E187: 37977.5 | F187: 38500.07782 | G187: 35870 | H187: 35872 | I187: 551.72 | J187: 546.11
A188: 2009-02-26T16:29:57 | B188: 519 | C188: 739 | D188: 35,7442 | E188: 37977.5 | F188: 38496.5034 | G188: 35870 | H188: 35872 | I188: 551.72 | J188: 546.11
A189: 2009-02-26T16:29:57 | B189: 521 | C189: 739 | D189: 35,7442 | E189: 37975.4 | F189: 38496.5034 | G189: 35870 | H189: 35872 | I189: 551.72 | J189: 546.11
A190: 2009-02-26T16:29:57 | B190: 525 | C190: 747 | D190: 35,7442 | E190: 37971.4 | F190: 38496.5034 | G190: 35870 | H190: 35872 | I190: 551.72 | J190: 546.11
A191: 2009-02-26T16:29:57 | B191: 525 | C191: 754 | D191: 35,7442 | E191: 37971.4 | F191: 38496.5034 | G191: 35870 | H191: 35872 | I191: 551.47 | J191: 546.11
A192: 2009-02-26T16:29:57 | B192: 525 | C192: 756 | D192: 35,7442 | E192: 37971.4 | F192: 38496.5034 | G192: 35870 | H192: 35872 | I192: 551.47 | J192: 546.11
A193: 2009-02-26T16:29:57 | B193: 525 | C193: 760 | D193: 35,7442 | E193: 37971.4 | F193: 38496.5034 | G193: 35870 | H193: 35872 | I193: 551.47 | J193: 546.11
A194: 2009-02-26T16:29:58 | B194: 525 | C194: 765 | D194: 35,7442 | E194: 37971.4 | F194: 38496.5034 | G194: 35870 | H194: 35872 | I194: 551.47 | J194: 546.11
A195: 2009-02-26T16:29:58 | B195: 529 | C195: 766 | D195: 35,7442 | E195: 37967.2 | F195: 38496.5034 | G195: 35870 | H195: 35872 | I195: 551.47 | J195: 546.11
A196: 2009-02-26T16:29:58 | B196: 537 | C196: 766 | D196: 35,7442 | E196: 37959.2 | F196: 38496.5034 | G196: 35870 | H196: 35872 | I196: 551.47 | J196: 546.11
A197: 2009-02-26T16:29:58 | B197: 537 | C197: 777 | D197: 35,7442 | E197: 37959.2 | F197: 38496.5034 | G197: 35872 | H197: 35874 | I197: 551.47 | J197: 546.11
A198: 2009-02-26T16:29:59 | B198: 533 | C198: 777 | D198: 35,7442 | E198: 37964 | F198: 38496.5034 | G198: 35872 | H198: 35874 | I198: 551.47 | J198: 546.11
A199: 2009-02-26T16:29:59 | B199: 534 | C199: 777 | D199: 35,7442 | E199: 37962.3 | F199: 38496.5034 | G199: 35872 | H199: 35874 | I199: 551.57 | J199: 546.11
A200: 2009-02-26T16:29:59 | B200: 534 | C200: 759 | D200: 35,7442 | E200: 37962.3 | F200: 38496.5034 | G200: 35872 | H200: 35874 | I200: 551.57 | J200: 546.11
... 4300 more rows

Sheet 25.02.2009
A1: 2009-02-25T16:24:02 | B1: 110 | C1: 184 | D1: 35,7442 | E1: 37227.9 | F1: 37338.39132 | G1: 36132 | H1: 36138 | I1: 536.85 | J1: 534.36 | M1: =MAX(B:B) -> 861 | N1: =MIN(C:C) -> 184
A2: 2009-02-25T16:24:32 | B2: 404 | C2: 478 | D2: 36,0254 | E2: 37227.9 | F2: 37632.13284 | G2: 36132 | H2: 36138 | I2: 536.85 | J2: 534.36
A3: 2009-02-25T16:24:48 | B3: 492 | C3: 588 | D3: 36,0254 | E3: 37313.1 | F3: 37805.05476 | G3: 36074 | H3: 36088 | I3: 538.31 | J3: 535.12
A4: 2009-02-25T16:24:49 | B4: 493 | C4: 588 | D4: 36,0254 | E4: 37312.4 | F4: 37805.05476 | G4: 36074 | H4: 36088 | I4: 538.31 | J4: 535.12
A5: 2009-02-25T16:24:50 | B5: 496 | C5: 588 | D5: 36,0254 | E5: 37312.4 | F5: 37808.6573 | G5: 36074 | H5: 36088 | I5: 538.31 | J5: 535.12
A6: 2009-02-25T16:24:50 | B6: 498 | C6: 594 | D6: 36,0254 | E6: 37310.3 | F6: 37808.6573 | G6: 36074 | H6: 36088 | I6: 538.31 | J6: 535.12
A7: 2009-02-25T16:24:52 | B7: 502 | C7: 595 | D7: 36,0254 | E7: 37306.8 | F7: 37808.6573 | G7: 36074 | H7: 36088 | I7: 538.31 | J7: 535.12
A8: 2009-02-25T16:24:52 | B8: 503 | C8: 595 | D8: 36,0254 | E8: 37305.4 | F8: 37808.6573 | G8: 36074 | H8: 36088 | I8: 538.31 | J8: 535.12
A9: 2009-02-25T16:24:53 | B9: 501 | C9: 595 | D9: 36,0254 | E9: 37307.2 | F9: 37808.6573 | G9: 36074 | H9: 36088 | I9: 538.24 | J9: 535.12
A10: 2009-02-25T16:24:53 | B10: 499 | C10: 595 | D10: 36,0254 | E10: 37310 | F10: 37808.6573 | G10: 36074 | H10: 36088 | I10: 538.24 | J10: 535.12
A11: 2009-02-25T16:24:53 | B11: 484 | C11: 591 | D11: 36,0254 | E11: 37310 | F11: 37794.24714 | G11: 36074 | H11: 36088 | I11: 538.24 | J11: 535.12
A12: 2009-02-25T16:24:54 | B12: 516 | C12: 602 | D12: 36,0254 | E12: 37310.7 | F12: 37826.67 | G12: 36074 | H12: 36088 | I12: 538.22 | J12: 535.12
A13: 2009-02-25T16:24:54 | B13: 517 | C13: 602 | D13: 36,0254 | E13: 37309.8 | F13: 37826.67 | G13: 36074 | H13: 36088 | I13: 538.22 | J13: 535.12
A14: 2009-02-25T16:24:55 | B14: 518 | C14: 602 | D14: 36,0254 | E14: 37308.3 | F14: 37826.67 | G14: 36074 | H14: 36088 | I14: 538.22 | J14: 535.12
A15: 2009-02-25T16:24:55 | B15: 518 | C15: 605 | D15: 36,0254 | E15: 37308.3 | F15: 37826.67 | G15: 36074 | H15: 36088 | I15: 538.22 | J15: 535.12
A16: 2009-02-25T16:24:56 | B16: 518 | C16: 604 | D16: 36,0254 | E16: 37308.3 | F16: 37826.67 | G16: 36074 | H16: 36088 | I16: 538.22 | J16: 535.12
A17: 2009-02-25T16:24:56 | B17: 518 | C17: 615 | D17: 36,0254 | E17: 37308.3 | F17: 37826.67 | G17: 36074 | H17: 36088 | I17: 538.22 | J17: 535.12
A18: 2009-02-25T16:24:57 | B18: 519 | C18: 615 | D18: 36,0254 | E18: 37308 | F18: 37826.67 | G18: 36075 | H18: 36088 | I18: 538.22 | J18: 535.12
A19: 2009-02-25T16:24:57 | B19: 523 | C19: 604 | D19: 36,0254 | E19: 37307.3 | F19: 37830.27254 | G19: 36075 | H19: 36088 | I19: 538.22 | J19: 535.12
A20: 2009-02-25T16:24:57 | B20: 523 | C20: 603 | D20: 36,0254 | E20: 37307.3 | F20: 37830.27254 | G20: 36075 | H20: 36088 | I20: 538.22 | J20: 535.12
A21: 2009-02-25T16:24:57 | B21: 523 | C21: 599 | D21: 36,0254 | E21: 37307.3 | F21: 37830.27254 | G21: 36075 | H21: 36088 | I21: 538.22 | J21: 535.12
A22: 2009-02-25T16:24:58 | B22: 523 | C22: 600 | D22: 36,0254 | E22: 37307.3 | F22: 37830.27254 | G22: 36075 | H22: 36088 | I22: 538.46 | J22: 535.12
A23: 2009-02-25T16:24:58 | B23: 523 | C23: 599 | D23: 36,0254 | E23: 37307.3 | F23: 37830.27254 | G23: 36075 | H23: 36088 | I23: 538.46 | J23: 535.12
A24: 2009-02-25T16:24:58 | B24: 523 | C24: 603 | D24: 36,0254 | E24: 37307.3 | F24: 37830.27254 | G24: 36075 | H24: 36088 | I24: 538.46 | J24: 535.12
A25: 2009-02-25T16:24:59 | B25: 519 | C25: 603 | D25: 36,0254 | E25: 37307.3 | F25: 37826.67 | G25: 36075 | H25: 36088 | I25: 538.46 | J25: 535.12
A26: 2009-02-25T16:25:00 | B26: 530 | C26: 611 | D26: 36,0254 | E26: 37307.3 | F26: 37837.47762 | G26: 36075 | H26: 36088 | I26: 538.46 | J26: 535.12
A27: 2009-02-25T16:25:01 | B27: 526 | C27: 617 | D27: 36,0254 | E27: 37311.8 | F27: 37837.47762 | G27: 36075 | H27: 36088 | I27: 538.46 | J27: 535.12
A28: 2009-02-25T16:25:03 | B28: 526 | C28: 616 | D28: 36,0254 | E28: 37311.8 | F28: 37837.47762 | G28: 36075 | H28: 36088 | I28: 538.46 | J28: 535.12
A29: 2009-02-25T16:25:03 | B29: 526 | C29: 623 | D29: 36,0254 | E29: 37311.8 | F29: 37837.47762 | G29: 36075 | H29: 36088 | I29: 538.46 | J29: 535.12
A30: 2009-02-25T16:25:03 | B30: 526 | C30: 622 | D30: 36,0254 | E30: 37311.8 | F30: 37837.47762 | G30: 36075 | H30: 36088 | I30: 538.46 | J30: 535.12
A31: 2009-02-25T16:25:03 | B31: 524 | C31: 623 | D31: 36,0254 | E31: 37313.2 | F31: 37837.47762 | G31: 36075 | H31: 36088 | I31: 538.5 | J31: 535.12
A32: 2009-02-25T16:25:03 | B32: 528 | C32: 616 | D32: 36,0254 | E32: 37309.7 | F32: 37837.47762 | G32: 36075 | H32: 36088 | I32: 538.5 | J32: 535.12
A33: 2009-02-25T16:25:03 | B33: 531 | C33: 630 | D33: 36,0254 | E33: 37309.7 | F33: 37841.08016 | G33: 36075 | H33: 36088 | I33: 538.5 | J33: 535.12
A34: 2009-02-25T16:25:04 | B34: 530 | C34: 630 | D34: 36,0254 | E34: 37311.1 | F34: 37841.08016 | G34: 36075 | H34: 36088 | I34: 538.51 | J34: 535.12
A35: 2009-02-25T16:25:04 | B35: 534 | C35: 623 | D35: 36,0254 | E35: 37311.1 | F35: 37844.6827 | G35: 36075 | H35: 36088 | I35: 538.51 | J35: 535.12
A36: 2009-02-25T16:25:04 | B36: 535 | C36: 623 | D36: 36,0254 | E36: 37309.7 | F36: 37844.6827 | G36: 36075 | H36: 36088 | I36: 538.51 | J36: 535.12
A37: 2009-02-25T16:25:05 | B37: 546 | C37: 626 | D37: 36,0254 | E37: 37309.7 | F37: 37855.49032 | G37: 36075 | H37: 36088 | I37: 538.51 | J37: 535.12
A38: 2009-02-25T16:25:08 | B38: 546 | C38: 627 | D38: 36,0254 | E38: 37309.7 | F38: 37855.49032 | G38: 36075 | H38: 36088 | I38: 538.49 | J38: 535.12
A39: 2009-02-25T16:25:08 | B39: 545 | C39: 627 | D39: 36,0254 | E39: 37310.3 | F39: 37855.49032 | G39: 36075 | H39: 36088 | I39: 538.49 | J39: 535.12
A40: 2009-02-25T16:25:09 | B40: 546 | C40: 627 | D40: 36,0254 | E40: 37309.6 | F40: 37855.49032 | G40: 36075 | H40: 36088 | I40: 538.5 | J40: 535.12
A41: 2009-02-25T16:25:09 | B41: 547 | C41: 627 | D41: 36,0254 | E41: 37308.9 | F41: 37855.49032 | G41: 36075 | H41: 36088 | I41: 538.5 | J41: 535.12
A42: 2009-02-25T16:25:09 | B42: 539 | C42: 623 | D42: 36,0254 | E42: 37308.9 | F42: 37848.28524 | G42: 36075 | H42: 36088 | I42: 538.5 | J42: 535.12
A43: 2009-02-25T16:25:10 | B43: 525 | C43: 623 | D43: 36,0254 | E43: 37308.9 | F43: 37833.87508 | G43: 36075 | H43: 36088 | I43: 538.59 | J43: 535.12
A44: 2009-02-25T16:25:11 | B44: 525 | C44: 624 | D44: 36,0254 | E44: 37308.9 | F44: 37833.87508 | G44: 36075 | H44: 36088 | I44: 538.59 | J44: 535.12
A45: 2009-02-25T16:25:11 | B45: 525 | C45: 617 | D45: 36,0254 | E45: 37308.9 | F45: 37833.87508 | G45: 36075 | H45: 36088 | I45: 538.59 | J45: 535.12
A46: 2009-02-25T16:25:11 | B46: 524 | C46: 617 | D46: 36,0254 | E46: 37309.6 | F46: 37833.87508 | G46: 36075 | H46: 36088 | I46: 538.59 | J46: 535.12
A47: 2009-02-25T16:25:12 | B47: 521 | C47: 617 | D47: 36,0254 | E47: 37309.6 | F47: 37830.27254 | G47: 36075 | H47: 36088 | I47: 538.61 | J47: 535.12
A48: 2009-02-25T16:25:13 | B48: 521 | C48: 610 | D48: 36,0254 | E48: 37308.9 | F48: 37830.27254 | G48: 36075 | H48: 36088 | I48: 538.61 | J48: 535.12
A49: 2009-02-25T16:25:14 | B49: 521 | C49: 606 | D49: 36,0254 | E49: 37308.9 | F49: 37830.27254 | G49: 36075 | H49: 36088 | I49: 538.61 | J49: 535.12
A50: 2009-02-25T16:25:16 | B50: 524 | C50: 606 | D50: 36,0254 | E50: 37309.6 | F50: 37833.87508 | G50: 36075 | H50: 36088 | I50: 538.54 | J50: 535.12
A51: 2009-02-25T16:25:16 | B51: 526 | C51: 606 | D51: 36,0254 | E51: 37308.2 | F51: 37833.87508 | G51: 36075 | H51: 36088 | I51: 538.54 | J51: 535.12
A52: 2009-02-25T16:25:16 | B52: 526 | C52: 610 | D52: 36,0254 | E52: 37308.2 | F52: 37833.87508 | G52: 36075 | H52: 36088 | I52: 538.54 | J52: 535.12
A53: 2009-02-25T16:25:18 | B53: 527 | C53: 609 | D53: 36,0254 | E53: 37306.8 | F53: 37833.87508 | G53: 36075 | H53: 36088 | I53: 538.57 | J53: 535.12
A54: 2009-02-25T16:25:18 | B54: 527 | C54: 623 | D54: 36,0254 | E54: 37306.8 | F54: 37833.87508 | G54: 36075 | H54: 36088 | I54: 538.57 | J54: 535.12
A55: 2009-02-25T16:25:19 | B55: 526 | C55: 621 | D55: 36,0254 | E55: 37308.2 | F55: 37833.87508 | G55: 36075 | H55: 36088 | I55: 538.5 | J55: 535.12
A56: 2009-02-25T16:25:21 | B56: 526 | C56: 626 | D56: 36,0254 | E56: 37308.2 | F56: 37833.87508 | G56: 36074 | H56: 36088 | I56: 538.5 | J56: 535.12
A57: 2009-02-25T16:25:21 | B57: 526 | C57: 625 | D57: 36,0254 | E57: 37308.2 | F57: 37833.87508 | G57: 36074 | H57: 36088 | I57: 538.5 | J57: 535.12
A58: 2009-02-25T16:25:21 | B58: 526 | C58: 618 | D58: 36,0254 | E58: 37308.2 | F58: 37833.87508 | G58: 36074 | H58: 36088 | I58: 538.5 | J58: 535.12
A59: 2009-02-25T16:25:21 | B59: 527 | C59: 621 | D59: 36,0254 | E59: 37306.7 | F59: 37833.87508 | G59: 36074 | H59: 36088 | I59: 538.5 | J59: 535.12
A60: 2009-02-25T16:25:23 | B60: 524 | C60: 614 | D60: 36,0254 | E60: 37306.7 | F60: 37830.27254 | G60: 36074 | H60: 36088 | I60: 538.46 | J60: 535.12
A61: 2009-02-25T16:25:23 | B61: 528 | C61: 614 | D61: 36,0254 | E61: 37302.5 | F61: 37830.27254 | G61: 36074 | H61: 36088 | I61: 538.46 | J61: 535.12
A62: 2009-02-25T16:25:23 | B62: 523 | C62: 620 | D62: 36,0254 | E62: 37307.5 | F62: 37830.27254 | G62: 36074 | H62: 36088 | I62: 538.46 | J62: 535.12
A63: 2009-02-25T16:25:24 | B63: 522 | C63: 619 | D63: 36,0254 | E63: 37308.2 | F63: 37830.27254 | G63: 36074 | H63: 36088 | I63: 538.46 | J63: 535.12
A64: 2009-02-25T16:25:24 | B64: 527 | C64: 616 | D64: 36,0254 | E64: 37303.2 | F64: 37830.27254 | G64: 36074 | H64: 36088 | I64: 538.46 | J64: 535.12
A65: 2009-02-25T16:25:25 | B65: 527 | C65: 617 | D65: 36,0254 | E65: 37303.2 | F65: 37830.27254 | G65: 36074 | H65: 36087 | I65: 538.39 | J65: 535.12
A66: 2009-02-25T16:25:25 | B66: 529 | C66: 618 | D66: 36,0254 | E66: 37301.1 | F66: 37830.27254 | G66: 36074 | H66: 36087 | I66: 538.39 | J66: 535.12
A67: 2009-02-25T16:25:25 | B67: 530 | C67: 619 | D67: 36,0254 | E67: 37300.4 | F67: 37830.27254 | G67: 36074 | H67: 36087 | I67: 538.39 | J67: 535.12
A68: 2009-02-25T16:25:25 | B68: 526 | C68: 619 | D68: 36,0254 | E68: 37300.4 | F68: 37826.67 | G68: 36074 | H68: 36087 | I68: 538.39 | J68: 535.12
A69: 2009-02-25T16:25:26 | B69: 534 | C69: 619 | D69: 36,0254 | E69: 37292.4 | F69: 37826.67 | G69: 36074 | H69: 36087 | I69: 538.39 | J69: 535.12
A70: 2009-02-25T16:25:26 | B70: 534 | C70: 616 | D70: 36,0254 | E70: 37292.4 | F70: 37826.67 | G70: 36074 | H70: 36087 | I70: 538.39 | J70: 535.12
A71: 2009-02-25T16:25:26 | B71: 535 | C71: 614 | D71: 36,0254 | E71: 37292.1 | F71: 37826.67 | G71: 36074 | H71: 36087 | I71: 538.39 | J71: 535.12
A72: 2009-02-25T16:25:29 | B72: 535 | C72: 615 | D72: 36,0254 | E72: 37292.1 | F72: 37826.67 | G72: 36074 | H72: 36087 | I72: 538.6 | J72: 535.12
A73: 2009-02-25T16:25:29 | B73: 537 | C73: 615 | D73: 36,0254 | E73: 37290 | F73: 37826.67 | G73: 36074 | H73: 36087 | I73: 538.6 | J73: 535.12
A74: 2009-02-25T16:25:30 | B74: 535 | C74: 615 | D74: 36,0254 | E74: 37292.1 | F74: 37826.67 | G74: 36074 | H74: 36087 | I74: 538.56 | J74: 535.12
A75: 2009-02-25T16:25:30 | B75: 531 | C75: 611 | D75: 36,0254 | E75: 37296.1 | F75: 37826.67 | G75: 36074 | H75: 36087 | I75: 538.56 | J75: 535.12
A76: 2009-02-25T16:25:30 | B76: 523 | C76: 604 | D76: 36,0254 | E76: 37296.1 | F76: 37819.46492 | G76: 36074 | H76: 36087 | I76: 538.56 | J76: 535.12
A77: 2009-02-25T16:25:30 | B77: 523 | C77: 603 | D77: 36,0254 | E77: 37296.1 | F77: 37819.46492 | G77: 36074 | H77: 36087 | I77: 538.56 | J77: 535.12
A78: 2009-02-25T16:25:31 | B78: 519 | C78: 599 | D78: 36,0254 | E78: 37300.8 | F78: 37819.46492 | G78: 36074 | H78: 36087 | I78: 538.61 | J78: 535.12
A79: 2009-02-25T16:25:31 | B79: 529 | C79: 606 | D79: 36,0254 | E79: 37300.8 | F79: 37830.27254 | G79: 36074 | H79: 36087 | I79: 538.61 | J79: 535.12
A80: 2009-02-25T16:25:32 | B80: 530 | C80: 606 | D80: 36,0254 | E80: 37300.1 | F80: 37830.27254 | G80: 36074 | H80: 36087 | I80: 538.61 | J80: 535.12
A81: 2009-02-25T16:25:32 | B81: 532 | C81: 606 | D81: 36,0254 | E81: 37298.7 | F81: 37830.27254 | G81: 36074 | H81: 36087 | I81: 538.61 | J81: 535.12
A82: 2009-02-25T16:25:32 | B82: 524 | C82: 610 | D82: 36,0254 | E82: 37306.3 | F82: 37830.27254 | G82: 36074 | H82: 36087 | I82: 538.61 | J82: 535.12
A83: 2009-02-25T16:25:32 | B83: 528 | C83: 628 | D83: 36,0254 | E83: 37306.3 | F83: 37833.87508 | G83: 36074 | H83: 36087 | I83: 538.61 | J83: 535.12
A84: 2009-02-25T16:25:34 | B84: 542 | C84: 628 | D84: 36,0254 | E84: 37306 | F84: 37848.28524 | G84: 36074 | H84: 36087 | I84: 538.5 | J84: 535.12
A85: 2009-02-25T16:25:34 | B85: 541 | C85: 628 | D85: 36,0254 | E85: 37307.4 | F85: 37848.28524 | G85: 36074 | H85: 36087 | I85: 538.5 | J85: 535.12
A86: 2009-02-25T16:25:35 | B86: 540 | C86: 628 | D86: 36,0254 | E86: 37308.1 | F86: 37848.28524 | G86: 36074 | H86: 36087 | I86: 538.5 | J86: 535.12
A87: 2009-02-25T16:25:35 | B87: 544 | C87: 631 | D87: 36,0254 | E87: 37308.1 | F87: 37851.88778 | G87: 36074 | H87: 36087 | I87: 538.5 | J87: 535.12
A88: 2009-02-25T16:25:37 | B88: 542 | C88: 631 | D88: 36,0254 | E88: 37309.6 | F88: 37851.88778 | G88: 36074 | H88: 36087 | I88: 538.56 | J88: 535.12
A89: 2009-02-25T16:25:37 | B89: 545 | C89: 637 | D89: 36,0254 | E89: 37307.2 | F89: 37851.88778 | G89: 36074 | H89: 36087 | I89: 538.56 | J89: 535.12
A90: 2009-02-25T16:25:37 | B90: 544 | C90: 636 | D90: 36,0254 | E90: 37307.9 | F90: 37851.88778 | G90: 36070 | H90: 36087 | I90: 538.56 | J90: 535.12
A91: 2009-02-25T16:25:38 | B91: 545 | C91: 635 | D91: 36,0254 | E91: 37307.2 | F91: 37851.88778 | G91: 36070 | H91: 36087 | I91: 538.56 | J91: 535.12
A92: 2009-02-25T16:25:38 | B92: 555 | C92: 653 | D92: 36,0254 | E92: 37307.2 | F92: 37862.6954 | G92: 36070 | H92: 36087 | I92: 538.56 | J92: 535.12
A93: 2009-02-25T16:25:39 | B93: 551 | C93: 653 | D93: 36,0254 | E93: 37312.1 | F93: 37862.6954 | G93: 36071 | H93: 36087 | I93: 538.56 | J93: 535.12
A94: 2009-02-25T16:25:39 | B94: 546 | C94: 652 | D94: 36,0254 | E94: 37317 | F94: 37862.6954 | G94: 36071 | H94: 36087 | I94: 538.56 | J94: 535.12
A95: 2009-02-25T16:25:39 | B95: 553 | C95: 659 | D95: 36,0254 | E95: 37317 | F95: 37869.90048 | G95: 36071 | H95: 36087 | I95: 538.56 | J95: 535.12
A96: 2009-02-25T16:25:40 | B96: 550 | C96: 659 | D96: 36,0254 | E96: 37319.8 | F96: 37869.90048 | G96: 36071 | H96: 36087 | I96: 538.56 | J96: 535.12
A97: 2009-02-25T16:25:40 | B97: 554 | C97: 656 | D97: 36,0254 | E97: 37319.8 | F97: 37873.50302 | G97: 36071 | H97: 36087 | I97: 538.56 | J97: 535.12
A98: 2009-02-25T16:25:40 | B98: 554 | C98: 654 | D98: 36,0254 | E98: 37319.8 | F98: 37873.50302 | G98: 36071 | H98: 36087 | I98: 538.56 | J98: 535.12
A99: 2009-02-25T16:25:41 | B99: 551 | C99: 654 | D99: 36,0254 | E99: 37319.1 | F99: 37869.90048 | G99: 36071 | H99: 36087 | I99: 538.56 | J99: 535.12
A100: 2009-02-25T16:25:41 | B100: 557 | C100: 655 | D100: 36,0254 | E100: 37312.8 | F100: 37869.90048 | G100: 36071 | H100: 36087 | I100: 538.56 | J100: 535.12
A101: 2009-02-25T16:25:41 | B101: 558 | C101: 657 | D101: 36,0254 | E101: 37312.4 | F101: 37869.90048 | G101: 36071 | H101: 36087 | I101: 538.56 | J101: 535.12
A102: 2009-02-25T16:25:42 | B102: 550 | C102: 650 | D102: 36,0254 | E102: 37312.4 | F102: 37862.6954 | G102: 36071 | H102: 36087 | I102: 538.56 | J102: 535.12
A103: 2009-02-25T16:25:43 | B103: 547 | C103: 650 | D103: 36,0254 | E103: 37315.2 | F103: 37862.6954 | G103: 36071 | H103: 36087 | I103: 538.56 | J103: 535.12
A104: 2009-02-25T16:25:44 | B104: 547 | C104: 643 | D104: 36,0254 | E104: 37315.2 | F104: 37862.6954 | G104: 36071 | H104: 36087 | I104: 538.57 | J104: 535.12
A105: 2009-02-25T16:25:44 | B105: 547 | C105: 639 | D105: 36,0254 | E105: 37315.2 | F105: 37862.6954 | G105: 36071 | H105: 36087 | I105: 538.57 | J105: 535.12
A106: 2009-02-25T16:25:44 | B106: 544 | C106: 636 | D106: 36,0254 | E106: 37315.2 | F106: 37859.09286 | G106: 36071 | H106: 36087 | I106: 538.57 | J106: 535.12
A107: 2009-02-25T16:25:45 | B107: 541 | C107: 631 | D107: 36,0254 | E107: 37317.6 | F107: 37859.09286 | G107: 36071 | H107: 36087 | I107: 538.57 | J107: 535.12
A108: 2009-02-25T16:25:45 | B108: 536 | C108: 634 | D108: 36,0254 | E108: 37322.6 | F108: 37859.09286 | G108: 36071 | H108: 36087 | I108: 538.57 | J108: 535.12
A109: 2009-02-25T16:25:46 | B109: 540 | C109: 634 | D109: 36,0254 | E109: 37322.6 | F109: 37862.6954 | G109: 36071 | H109: 36087 | I109: 538.73 | J109: 535.12
A110: 2009-02-25T16:25:46 | B110: 547 | C110: 631 | D110: 36,0254 | E110: 37316.1 | F110: 37862.6954 | G110: 36071 | H110: 36087 | I110: 538.73 | J110: 535.12
A111: 2009-02-25T16:25:47 | B111: 547 | C111: 636 | D111: 36,0254 | E111: 37316 | F111: 37862.6954 | G111: 36070 | H111: 36087 | I111: 538.74 | J111: 535.12
A112: 2009-02-25T16:25:49 | B112: 547 | C112: 635 | D112: 36,0254 | E112: 37315.3 | F112: 37862.6954 | G112: 36070 | H112: 36087 | I112: 538.74 | J112: 535.12
A113: 2009-02-25T16:25:49 | B113: 555 | C113: 650 | D113: 36,0254 | E113: 37315.3 | F113: 37869.90048 | G113: 36070 | H113: 36087 | I113: 538.74 | J113: 535.12
A114: 2009-02-25T16:25:49 | B114: 550 | C114: 646 | D114: 36,0254 | E114: 37320.2 | F114: 37869.90048 | G114: 36070 | H114: 36087 | I114: 538.74 | J114: 535.12
A115: 2009-02-25T16:25:50 | B115: 548 | C115: 645 | D115: 36,0254 | E115: 37322.4 | F115: 37869.90048 | G115: 36070 | H115: 36087 | I115: 538.63 | J115: 535.12
A116: 2009-02-25T16:25:50 | B116: 555 | C116: 645 | D116: 36,0254 | E116: 37322.4 | F116: 37877.10556 | G116: 36070 | H116: 36087 | I116: 538.63 | J116: 535.12
A117: 2009-02-25T16:25:50 | B117: 563 | C117: 645 | D117: 36,0254 | E117: 37314.4 | F117: 37877.10556 | G117: 36070 | H117: 36087 | I117: 538.63 | J117: 535.12
A118: 2009-02-25T16:25:51 | B118: 561 | C118: 639 | D118: 36,0254 | E118: 37315.8 | F118: 37877.10556 | G118: 36070 | H118: 36086 | I118: 538.63 | J118: 535.12
A119: 2009-02-25T16:25:51 | B119: 561 | C119: 642 | D119: 36,0254 | E119: 37315.8 | F119: 37877.10556 | G119: 36070 | H119: 36086 | I119: 538.63 | J119: 535.12
A120: 2009-02-25T16:25:52 | B120: 562 | C120: 642 | D120: 36,0254 | E120: 37315.1 | F120: 37877.10556 | G120: 36070 | H120: 36086 | I120: 538.66 | J120: 535.12
A121: 2009-02-25T16:25:53 | B121: 563 | C121: 642 | D121: 36,0254 | E121: 37314.3 | F121: 37877.10556 | G121: 36070 | H121: 36085 | I121: 538.69 | J121: 535.12
A122: 2009-02-25T16:25:53 | B122: 564 | C122: 642 | D122: 36,0254 | E122: 37313.6 | F122: 37877.10556 | G122: 36070 | H122: 36085 | I122: 538.69 | J122: 535.12
A123: 2009-02-25T16:25:53 | B123: 571 | C123: 646 | D123: 36,0254 | E123: 37313.6 | F123: 37884.31064 | G123: 36070 | H123: 36085 | I123: 538.69 | J123: 535.12
A124: 2009-02-25T16:25:53 | B124: 558 | C124: 646 | D124: 36,0254 | E124: 37326.1 | F124: 37884.31064 | G124: 36070 | H124: 36085 | I124: 538.69 | J124: 535.12
A125: 2009-02-25T16:25:55 | B125: 565 | C125: 641 | D125: 36,0254 | E125: 37319.1 | F125: 37884.31064 | G125: 36070 | H125: 36085 | I125: 538.69 | J125: 535.12
A126: 2009-02-25T16:25:55 | B126: 565 | C126: 646 | D126: 36,0254 | E126: 37319.1 | F126: 37884.31064 | G126: 36070 | H126: 36085 | I126: 538.69 | J126: 535.12
A127: 2009-02-25T16:25:55 | B127: 551 | C127: 653 | D127: 36,0254 | E127: 37319.1 | F127: 37869.90048 | G127: 36070 | H127: 36085 | I127: 538.69 | J127: 535.12
A128: 2009-02-25T16:25:57 | B128: 558 | C128: 649 | D128: 36,0254 | E128: 37319.1 | F128: 37877.10556 | G128: 36070 | H128: 36085 | I128: 538.71 | J128: 535.12
A129: 2009-02-25T16:25:57 | B129: 553 | C129: 655 | D129: 36,0254 | E129: 37324.1 | F129: 37877.10556 | G129: 36070 | H129: 36085 | I129: 538.71 | J129: 535.12
A130: 2009-02-25T16:25:58 | B130: 560 | C130: 655 | D130: 36,0254 | E130: 37324.1 | F130: 37884.31064 | G130: 36070 | H130: 36078 | I130: 538.71 | J130: 535.12
A131: 2009-02-25T16:25:58 | B131: 566 | C131: 652 | D131: 36,0254 | E131: 37318.1 | F131: 37884.31064 | G131: 36070 | H131: 36078 | I131: 538.71 | J131: 535.12
A132: 2009-02-25T16:26:00 | B132: 563 | C132: 648 | D132: 36,0254 | E132: 37318.1 | F132: 37880.7081 | G132: 36070 | H132: 36078 | I132: 538.63 | J132: 535.12
A133: 2009-02-25T16:26:00 | B133: 563 | C133: 644 | D133: 36,0254 | E133: 37318.1 | F133: 37880.7081 | G133: 36070 | H133: 36078 | I133: 538.63 | J133: 535.12
A134: 2009-02-25T16:26:01 | B134: 565 | C134: 646 | D134: 36,0254 | E134: 37316 | F134: 37880.7081 | G134: 36070 | H134: 36078 | I134: 538.64 | J134: 535.12
A135: 2009-02-25T16:26:01 | B135: 569 | C135: 646 | D135: 36,0254 | E135: 37315.3 | F135: 37884.31064 | G135: 36070 | H135: 36078 | I135: 538.64 | J135: 535.12
A136: 2009-02-25T16:26:02 | B136: 568 | C136: 646 | D136: 36,0254 | E136: 37316 | F136: 37884.31064 | G136: 36070 | H136: 36078 | I136: 538.64 | J136: 535.12
A137: 2009-02-25T16:26:03 | B137: 568 | C137: 645 | D137: 36,0254 | E137: 37315.9 | F137: 37884.31064 | G137: 36070 | H137: 36078 | I137: 538.64 | J137: 535.12
A138: 2009-02-25T16:26:04 | B138: 561 | C138: 645 | D138: 36,0254 | E138: 37316 | F138: 37877.10556 | G138: 36070 | H138: 36078 | I138: 538.64 | J138: 535.12
A139: 2009-02-25T16:26:05 | B139: 561 | C139: 652 | D139: 36,0254 | E139: 37316 | F139: 37877.10556 | G139: 36070 | H139: 36078 | I139: 538.64 | J139: 535.12
A140: 2009-02-25T16:26:05 | B140: 558 | C140: 652 | D140: 36,0254 | E140: 37316 | F140: 37873.50302 | G140: 36070 | H140: 36078 | I140: 538.64 | J140: 535.12
A141: 2009-02-25T16:26:05 | B141: 564 | C141: 651 | D141: 36,0254 | E141: 37309.4 | F141: 37873.50302 | G141: 36070 | H141: 36078 | I141: 538.64 | J141: 535.12
A142: 2009-02-25T16:26:06 | B142: 564 | C142: 648 | D142: 36,0254 | E142: 37309.4 | F142: 37873.50302 | G142: 36070 | H142: 36078 | I142: 538.67 | J142: 535.12
A143: 2009-02-25T16:26:06 | B143: 564 | C143: 652 | D143: 36,0254 | E143: 37309.3 | F143: 37873.50302 | G143: 36070 | H143: 36078 | I143: 538.67 | J143: 535.12
A144: 2009-02-25T16:26:07 | B144: 564 | C144: 651 | D144: 36,0254 | E144: 37309.3 | F144: 37873.50302 | G144: 36070 | H144: 36078 | I144: 538.67 | J144: 535.12
A145: 2009-02-25T16:26:07 | B145: 564 | C145: 655 | D145: 36,0254 | E145: 37309.3 | F145: 37873.50302 | G145: 36070 | H145: 36078 | I145: 538.67 | J145: 535.12
A146: 2009-02-25T16:26:07 | B146: 565 | C146: 654 | D146: 36,0254 | E146: 37309 | F146: 37873.50302 | G146: 36070 | H146: 36078 | I146: 538.67 | J146: 535.12
A147: 2009-02-25T16:26:07 | B147: 564 | C147: 654 | D147: 36,0254 | E147: 37309.1 | F147: 37873.50302 | G147: 36070 | H147: 36078 | I147: 538.67 | J147: 535.12
A148: 2009-02-25T16:26:08 | B148: 564 | C148: 650 | D148: 36,0254 | E148: 37309.1 | F148: 37873.50302 | G148: 36070 | H148: 36077 | I148: 538.73 | J148: 535.12
A149: 2009-02-25T16:26:09 | B149: 565 | C149: 645 | D149: 36,0254 | E149: 37308.4 | F149: 37873.50302 | G149: 36070 | H149: 36076 | I149: 538.73 | J149: 535.12
A150: 2009-02-25T16:26:09 | B150: 562 | C150: 645 | D150: 36,0254 | E150: 37311.2 | F150: 37873.50302 | G150: 36070 | H150: 36076 | I150: 538.73 | J150: 535.12
A151: 2009-02-25T16:26:11 | B151: 563 | C151: 645 | D151: 36,0254 | E151: 37310.7 | F151: 37873.50302 | G151: 36070 | H151: 36076 | I151: 538.67 | J151: 535.12
A152: 2009-02-25T16:26:11 | B152: 556 | C152: 645 | D152: 36,0254 | E152: 37310.7 | F152: 37866.29794 | G152: 36070 | H152: 36076 | I152: 538.67 | J152: 535.12
A153: 2009-02-25T16:26:11 | B153: 552 | C153: 645 | D153: 36,0254 | E153: 37314.7 | F153: 37866.29794 | G153: 36070 | H153: 36076 | I153: 538.67 | J153: 535.12
A154: 2009-02-25T16:26:12 | B154: 551 | C154: 645 | D154: 36,0254 | E154: 37315.4 | F154: 37866.29794 | G154: 36070 | H154: 36076 | I154: 538.68 | J154: 535.12
A155: 2009-02-25T16:26:12 | B155: 551 | C155: 646 | D155: 36,0254 | E155: 37315.4 | F155: 37866.29794 | G155: 36070 | H155: 36076 | I155: 538.68 | J155: 535.12
A156: 2009-02-25T16:26:12 | B156: 556 | C156: 645 | D156: 36,0254 | E156: 37310.3 | F156: 37866.29794 | G156: 36070 | H156: 36076 | I156: 538.68 | J156: 535.12
A157: 2009-02-25T16:26:12 | B157: 548 | C157: 645 | D157: 36,0254 | E157: 37318.4 | F157: 37866.29794 | G157: 36070 | H157: 36076 | I157: 538.68 | J157: 535.12
A158: 2009-02-25T16:26:13 | B158: 547 | C158: 645 | D158: 36,0254 | E158: 37319.1 | F158: 37866.29794 | G158: 36070 | H158: 36076 | I158: 538.68 | J158: 535.12
A159: 2009-02-25T16:26:13 | B159: 543 | C159: 645 | D159: 36,0254 | E159: 37323.2 | F159: 37866.29794 | G159: 36070 | H159: 36076 | I159: 538.68 | J159: 535.12
A160: 2009-02-25T16:26:14 | B160: 550 | C160: 645 | D160: 36,0254 | E160: 37323.2 | F160: 37873.50302 | G160: 36070 | H160: 36076 | I160: 538.67 | J160: 535.12
A161: 2009-02-25T16:26:15 | B161: 550 | C161: 650 | D161: 36,0254 | E161: 37323.2 | F161: 37873.50302 | G161: 36070 | H161: 36076 | I161: 538.67 | J161: 535.12
A162: 2009-02-25T16:26:15 | B162: 551 | C162: 651 | D162: 36,0254 | E162: 37322.5 | F162: 37873.50302 | G162: 36070 | H162: 36076 | I162: 538.67 | J162: 535.12
A163: 2009-02-25T16:26:16 | B163: 553 | C163: 649 | D163: 36,0254 | E163: 37320.4 | F163: 37873.50302 | G163: 36070 | H163: 36076 | I163: 539.09 | J163: 535.12
A164: 2009-02-25T16:26:16 | B164: 553 | C164: 646 | D164: 36,0254 | E164: 37320.4 | F164: 37873.50302 | G164: 36070 | H164: 36076 | I164: 539.09 | J164: 535.12
A165: 2009-02-25T16:26:17 | B165: 554 | C165: 646 | D165: 36,0254 | E165: 37319.8 | F165: 37873.50302 | G165: 36070 | H165: 36076 | I165: 539.09 | J165: 535.12
A166: 2009-02-25T16:26:17 | B166: 546 | C166: 639 | D166: 36,0254 | E166: 37327.5 | F166: 37873.50302 | G166: 36070 | H166: 36076 | I166: 539.09 | J166: 535.12
A167: 2009-02-25T16:26:21 | B167: 544 | C167: 635 | D167: 36,0254 | E167: 37329.3 | F167: 37873.50302 | G167: 36070 | H167: 36076 | I167: 539.1 | J167: 535.12
A168: 2009-02-25T16:26:21 | B168: 548 | C168: 642 | D168: 36,0254 | E168: 37329.3 | F168: 37877.10556 | G168: 36070 | H168: 36076 | I168: 539.1 | J168: 535.12
A169: 2009-02-25T16:26:23 | B169: 547 | C169: 638 | D169: 36,0254 | E169: 37330.3 | F169: 37877.10556 | G169: 36070 | H169: 36076 | I169: 539.37 | J169: 535.12
A170: 2009-02-25T16:26:23 | B170: 547 | C170: 637 | D170: 36,0254 | E170: 37330 | F170: 37877.10556 | G170: 36070 | H170: 36076 | I170: 539.37 | J170: 535.12
A171: 2009-02-25T16:26:23 | B171: 543 | C171: 633 | D171: 36,0254 | E171: 37334 | F171: 37877.10556 | G171: 36070 | H171: 36076 | I171: 539.37 | J171: 535.12
A172: 2009-02-25T16:26:23 | B172: 540 | C172: 629 | D172: 36,0254 | E172: 37337.4 | F172: 37877.10556 | G172: 36070 | H172: 36084 | I172: 539.37 | J172: 535.12
A173: 2009-02-25T16:26:23 | B173: 558 | C173: 636 | D173: 36,0254 | E173: 37337.4 | F173: 37895.11826 | G173: 36070 | H173: 36084 | I173: 539.37 | J173: 535.12
A174: 2009-02-25T16:26:23 | B174: 553 | C174: 631 | D174: 36,0254 | E174: 37342.3 | F174: 37895.11826 | G174: 36070 | H174: 36084 | I174: 539.37 | J174: 535.12
A175: 2009-02-25T16:26:25 | B175: 551 | C175: 632 | D175: 36,0254 | E175: 37343.8 | F175: 37895.11826 | G175: 36068 | H175: 36084 | I175: 539.47 | J175: 535.12
A176: 2009-02-25T16:26:25 | B176: 559 | C176: 639 | D176: 36,0254 | E176: 37343.8 | F176: 37902.32334 | G176: 36068 | H176: 36084 | I176: 539.47 | J176: 535.12
A177: 2009-02-25T16:26:25 | B177: 553 | C177: 638 | D177: 36,0254 | E177: 37349.4 | F177: 37902.32334 | G177: 36068 | H177: 36084 | I177: 539.47 | J177: 535.12
A178: 2009-02-25T16:26:26 | B178: 552 | C178: 638 | D178: 36,0254 | E178: 37350 | F178: 37902.32334 | G178: 36068 | H178: 36084 | I178: 539.47 | J178: 535.12
A179: 2009-02-25T16:26:26 | B179: 554 | C179: 640 | D179: 36,0254 | E179: 37347.9 | F179: 37902.32334 | G179: 36068 | H179: 36084 | I179: 539.47 | J179: 535.12
A180: 2009-02-25T16:26:26 | B180: 558 | C180: 650 | D180: 36,0254 | E180: 37347.9 | F180: 37905.92588 | G180: 36068 | H180: 36084 | I180: 539.49 | J180: 535.12
A181: 2009-02-25T16:26:26 | B181: 559 | C181: 650 | D181: 36,0254 | E181: 37347.2 | F181: 37905.92588 | G181: 36068 | H181: 36084 | I181: 539.49 | J181: 535.12
A182: 2009-02-25T16:26:26 | B182: 557 | C182: 650 | D182: 36,0254 | E182: 37349.2 | F182: 37905.92588 | G182: 36068 | H182: 36084 | I182: 539.49 | J182: 535.12
A183: 2009-02-25T16:26:27 | B183: 555 | C183: 650 | D183: 36,0254 | E183: 37351.1 | F183: 37905.92588 | G183: 36068 | H183: 36083 | I183: 539.49 | J183: 535.12
A184: 2009-02-25T16:26:27 | B184: 562 | C184: 650 | D184: 36,0254 | E184: 37351.1 | F184: 37913.13096 | G184: 36068 | H184: 36083 | I184: 539.49 | J184: 535.12
A185: 2009-02-25T16:26:27 | B185: 563 | C185: 650 | D185: 36,0254 | E185: 37350.5 | F185: 37913.13096 | G185: 36068 | H185: 36083 | I185: 539.49 | J185: 535.12
A186: 2009-02-25T16:26:29 | B186: 563 | C186: 649 | D186: 36,0254 | E186: 37350.5 | F186: 37913.13096 | G186: 36068 | H186: 36083 | I186: 539.49 | J186: 535.12
A187: 2009-02-25T16:26:29 | B187: 565 | C187: 649 | D187: 36,0254 | E187: 37348.3 | F187: 37913.13096 | G187: 36068 | H187: 36083 | I187: 539.57 | J187: 535.12
A188: 2009-02-25T16:26:29 | B188: 565 | C188: 645 | D188: 36,0254 | E188: 37348.3 | F188: 37913.13096 | G188: 36068 | H188: 36083 | I188: 539.57 | J188: 535.12
A189: 2009-02-25T16:26:29 | B189: 568 | C189: 655 | D189: 36,0254 | E189: 37348.3 | F189: 37916.7335 | G189: 36055 | H189: 36060 | I189: 539.57 | J189: 535.12
A190: 2009-02-25T16:26:31 | B190: 569 | C190: 655 | D190: 36,0254 | E190: 37347.6 | F190: 37916.7335 | G190: 36055 | H190: 36060 | I190: 539.68 | J190: 535.12
A191: 2009-02-25T16:26:31 | B191: 568 | C191: 655 | D191: 36,0254 | E191: 37348.8 | F191: 37916.7335 | G191: 36055 | H191: 36060 | I191: 539.68 | J191: 535.12
A192: 2009-02-25T16:26:32 | B192: 567 | C192: 654 | D192: 36,0254 | E192: 37349.5 | F192: 37916.7335 | G192: 36055 | H192: 36060 | I192: 539.68 | J192: 535.12
A193: 2009-02-25T16:26:33 | B193: 571 | C193: 650 | D193: 36,0254 | E193: 37349.5 | F193: 37920.33604 | G193: 36055 | H193: 36060 | I193: 539.67 | J193: 535.12
A194: 2009-02-25T16:26:33 | B194: 570 | C194: 650 | D194: 36,0254 | E194: 37350.1 | F194: 37920.33604 | G194: 36055 | H194: 36060 | I194: 539.67 | J194: 535.12
A195: 2009-02-25T16:26:33 | B195: 568 | C195: 653 | D195: 36,0254 | E195: 37352.6 | F195: 37920.33604 | G195: 36055 | H195: 36060 | I195: 539.67 | J195: 535.12
A196: 2009-02-25T16:26:33 | B196: 568 | C196: 644 | D196: 36,0254 | E196: 37352.6 | F196: 37920.33604 | G196: 36055 | H196: 36060 | I196: 539.67 | J196: 535.12
A197: 2009-02-25T16:26:33 | B197: 568 | C197: 648 | D197: 36,0254 | E197: 37352.6 | F197: 37920.33604 | G197: 36055 | H197: 36060 | I197: 539.67 | J197: 535.12
A198: 2009-02-25T16:26:34 | B198: 562 | C198: 650 | D198: 36,0254 | E198: 37358.2 | F198: 37920.33604 | G198: 36055 | H198: 36060 | I198: 539.67 | J198: 535.12
A199: 2009-02-25T16:26:34 | B199: 562 | C199: 654 | D199: 36,0254 | E199: 37358.2 | F199: 37920.33604 | G199: 36055 | H199: 36060 | I199: 539.67 | J199: 535.12
A200: 2009-02-25T16:26:34 | B200: 563 | C200: 654 | D200: 36,0254 | E200: 37357.5 | F200: 37920.33604 | G200: 36055 | H200: 36060 | I200: 539.67 | J200: 535.12
... 4300 more rows
